{"text_format":"1","workbook":"xlsx","n_sheets":2,"sheets":["OrderSheet","Sheet1"],"not_rendered":{"charts":0,"images":0,"macros":1,"external_links":0,"defined_names":4,"comments":1,"pivot_tables":0},"unopened":[],"bounds":{"document_bytes":16777216,"sheet_cells":100000,"rows_first":2000,"rows_last":500,"rows_between":2000,"halvings":0,"cell_chars":16384,"cell_head_chars":4096},"cells_cut":0,"cells_raw":0,"read":"whole","date_system":"1900"}

{"sheet":"OrderSheet","index":0,"n_rows":359,"n_cols":40,"rows_kept":359,"cut":false,"hidden":false,"merged":[[9,2,9,3],[6,2,6,3],[2,2,2,3],[3,2,3,3],[4,2,4,3],[5,2,5,3],[7,2,7,3],[8,2,8,3]]}
[null,"KEEN 2023 Spring/Summer Order Sheet"]
[null,null,null,null,null,null,null,null,null,null,null,null,null,null,null,null,null,null,null,null,null,null,null,null,null,null,null,"数量合計",null,null,"数量比率",null,null,"上代合計",null,null,"下代合計"]
[null,"オーダー種類","Utility",null,null,null,null,null,null,null,null,null,null,null,null,null,null,null,null,null,null,null,null,null,null,null,"CATEGORY","1st","Follow","計","1st","Follow","計","1st","Follow","計","1st","Follow","計"]
[null,"提出期限",null,null,null,null,null,null,null,null,null,null,null,null,null,null,null,null,null,null,null,null,null,null,null,null,"Sandal",{"$f":"SUMIF($E$18:$E$359,$AA4,AE$18:AE$359)","v":0},{"$f":"SUMIF($E$18:$E$359,$AA4,AF$18:AF$359)","v":0},{"$f":"SUMIF($E$18:$E$359,$AA4,AG$18:AG$359)","v":0},{"$f":"IF(ISERROR(AB4/AB$13),\"\",AB4/AB$13)","v":""},{"$f":"IF(ISERROR(AC4/AC$13),\"\",AC4/AC$13)","v":""},{"$f":"IF(ISERROR(AD4/AD$13),\"\",AD4/AD$13)","v":""},{"$f":"SUMIF($E$18:$E$359,$AA4,AH$18:AH$359)","v":0},{"$f":"SUMIF($E$18:$E$359,$AA4,AI$18:AI$359)","v":0},{"$f":"SUMIF($E$18:$E$359,$AA4,AJ$18:AJ$359)","v":0},{"$f":"SUMIF($E$18:$E$359,$AA4,AK$18:AK$359)","v":0},{"$f":"SUMIF($E$18:$E$359,$AA4,AL$18:AL$359)","v":0},{"$f":"SUMIF($E$18:$E$359,$AA4,AM$18:AM$359)","v":0}]
[null,"得意先名",null,null,null,null,null,null,null,null,null,null,null,null,null,null,null,null,null,null,null,null,null,null,null,null,"Outdoor",{"$f":"SUMIF($E$18:$E$359,$AA5,AE$18:AE$359)","v":0},{"$f":"SUMIF($E$18:$E$359,$AA5,AF$18:AF$359)","v":0},{"$f":"SUMIF($E$18:$E$359,$AA5,AG$18:AG$359)","v":0},"","","",{"$f":"SUMIF($E$18:$E$359,$AA5,AH$18:AH$359)","v":0},{"$f":"SUMIF($E$18:$E$359,$AA5,AI$18:AI$359)","v":0},{"$f":"SUMIF($E$18:$E$359,$AA5,AJ$18:AJ$359)","v":0},{"$f":"SUMIF($E$18:$E$359,$AA5,AK$18:AK$359)","v":0},{"$f":"SUMIF($E$18:$E$359,$AA5,AL$18:AL$359)","v":0},{"$f":"SUMIF($E$18:$E$359,$AA5,AM$18:AM$359)","v":0}]
[null,"店舗・帳合先",null,null,null,null,null,null,null,null,null,null,null,null,null,null,null,null,null,null,null,null,null,null,null,null,"Uneek",{"$f":"SUMIF($E$18:$E$359,$AA6,AE$18:AE$359)","v":0},{"$f":"SUMIF($E$18:$E$359,$AA6,AF$18:AF$359)","v":0},{"$f":"SUMIF($E$18:$E$359,$AA6,AG$18:AG$359)","v":0},"","","",{"$f":"SUMIF($E$18:$E$359,$AA6,AH$18:AH$359)","v":0},{"$f":"SUMIF($E$18:$E$359,$AA6,AI$18:AI$359)","v":0},{"$f":"SUMIF($E$18:$E$359,$AA6,AJ$18:AJ$359)","v":0},{"$f":"SUMIF($E$18:$E$359,$AA6,AK$18:AK$359)","v":0},{"$f":"SUMIF($E$18:$E$359,$AA6,AL$18:AL$359)","v":0},{"$f":"SUMIF($E$18:$E$359,$AA6,AM$18:AM$359)","v":0}]
[null,"得意先コード",null,null,null,null,null,null,null,null,null,null,null,null,null,null,null,null,null,null,null,null,null,null,null,null,"Lifestyle",{"$f":"SUMIF($E$18:$E$359,$AA7,AE$18:AE$359)","v":0},{"$f":"SUMIF($E$18:$E$359,$AA7,AF$18:AF$359)","v":0},{"$f":"SUMIF($E$18:$E$359,$AA7,AG$18:AG$359)","v":0},"","","",{"$f":"SUMIF($E$18:$E$359,$AA7,AH$18:AH$359)","v":0},{"$f":"SUMIF($E$18:$E$359,$AA7,AI$18:AI$359)","v":0},{"$f":"SUMIF($E$18:$E$359,$AA7,AJ$18:AJ$359)","v":0},{"$f":"SUMIF($E$18:$E$359,$AA7,AK$18:AK$359)","v":0},{"$f":"SUMIF($E$18:$E$359,$AA7,AL$18:AL$359)","v":0},{"$f":"SUMIF($E$18:$E$359,$AA7,AM$18:AM$359)","v":0}]
[null,"KEEN担当者",null,null,null,null,null,null,null,null,null,null,null,null,null,null,null,null,null,null,null,null,null,null,null,null,"Kids",{"$f":"SUMIF($E$18:$E$359,$AA8,AE$18:AE$359)","v":0},{"$f":"SUMIF($E$18:$E$359,$AA8,AF$18:AF$359)","v":0},{"$f":"SUMIF($E$18:$E$359,$AA8,AG$18:AG$359)","v":0},"","","",{"$f":"SUMIF($E$18:$E$359,$AA8,AH$18:AH$359)","v":0},{"$f":"SUMIF($E$18:$E$359,$AA8,AI$18:AI$359)","v":0},{"$f":"SUMIF($E$18:$E$359,$AA8,AJ$18:AJ$359)","v":0},{"$f":"SUMIF($E$18:$E$359,$AA8,AK$18:AK$359)","v":0},{"$f":"SUMIF($E$18:$E$359,$AA8,AL$18:AL$359)","v":0},{"$f":"SUMIF($E$18:$E$359,$AA8,AM$18:AM$359)","v":0}]
[null,"掛率（％）",null,null,null,null,null,null,null,null,null,null,null,null,null,null,null,null,null,null,null,null,null,null,null,null,"WORK",{"$f":"SUMIF($E$18:$E$359,$AA9,AE$18:AE$359)","v":0},{"$f":"SUMIF($E$18:$E$359,$AA9,AF$18:AF$359)","v":0},{"$f":"SUMIF($E$18:$E$359,$AA9,AG$18:AG$359)","v":0},"","","",{"$f":"SUMIF($E$18:$E$359,$AA9,AH$18:AH$359)","v":0},{"$f":"SUMIF($E$18:$E$359,$AA9,AI$18:AI$359)","v":0},{"$f":"SUMIF($E$18:$E$359,$AA9,AJ$18:AJ$359)","v":0},{"$f":"SUMIF($E$18:$E$359,$AA9,AK$18:AK$359)","v":0},{"$f":"SUMIF($E$18:$E$359,$AA9,AL$18:AL$359)","v":0},{"$f":"SUMIF($E$18:$E$359,$AA9,AM$18:AM$359)","v":0}]
[null,"記入日",null,null,null,null,null,null,null,null,null,null,null,null,null,null,null,null,null,null,null,null,null,null,null,null,"Softgoods",{"$f":"SUMIF($E$18:$E$359,$AA10,AE$18:AE$359)","v":0},{"$f":"SUMIF($E$18:$E$359,$AA10,AF$18:AF$359)","v":0},{"$f":"SUMIF($E$18:$E$359,$AA10,AG$18:AG$359)","v":0},"","","",{"$f":"SUMIF($E$18:$E$359,$AA10,AH$18:AH$359)","v":0},{"$f":"SUMIF($E$18:$E$359,$AA10,AI$18:AI$359)","v":0},{"$f":"SUMIF($E$18:$E$359,$AA10,AJ$18:AJ$359)","v":0},{"$f":"SUMIF($E$18:$E$359,$AA10,AK$18:AK$359)","v":0},{"$f":"SUMIF($E$18:$E$359,$AA10,AL$18:AL$359)","v":0},{"$f":"SUMIF($E$18:$E$359,$AA10,AM$18:AM$359)","v":0}]
[null,null,null,null,null,null,null,null,null,null,null,null,null,null,null,null,null,null,null,null,null,null,null,null,null,null,null,{"$f":"SUMIF($E$18:$E$359,$AA11,AE$18:AE$359)","v":0},{"$f":"SUMIF($E$18:$E$359,$AA11,AF$18:AF$359)","v":0},{"$f":"SUMIF($E$18:$E$359,$AA11,AG$18:AG$359)","v":0},"","","",{"$f":"SUMIF($E$18:$E$359,$AA11,AH$18:AH$359)","v":0},{"$f":"SUMIF($E$18:$E$359,$AA11,AI$18:AI$359)","v":0},{"$f":"SUMIF($E$18:$E$359,$AA11,AJ$18:AJ$359)","v":0},{"$f":"SUMIF($E$18:$E$359,$AA11,AK$18:AK$359)","v":0},{"$f":"SUMIF($E$18:$E$359,$AA11,AL$18:AL$359)","v":0},{"$f":"SUMIF($E$18:$E$359,$AA11,AM$18:AM$359)","v":0}]
[null,null,null,null,null,null,null,null,null,null,null,null,null,null,null,null,null,null,null,null,null,null,null,null,null,null,null,{"$f":"SUMIF($E$18:$E$359,$AA12,AE$18:AE$359)","v":0},{"$f":"SUMIF($E$18:$E$359,$AA12,AF$18:AF$359)","v":0},{"$f":"SUMIF($E$18:$E$359,$AA12,AG$18:AG$359)","v":0},"","","",{"$f":"SUMIF($E$18:$E$359,$AA12,AH$18:AH$359)","v":0},{"$f":"SUMIF($E$18:$E$359,$AA12,AI$18:AI$359)","v":0},{"$f":"SUMIF($E$18:$E$359,$AA12,AJ$18:AJ$359)","v":0},{"$f":"SUMIF($E$18:$E$359,$AA12,AK$18:AK$359)","v":0},{"$f":"SUMIF($E$18:$E$359,$AA12,AL$18:AL$359)","v":0},{"$f":"SUMIF($E$18:$E$359,$AA12,AM$18:AM$359)","v":0}]
[null,null,null,null,null,null,null,null,null,null,null,null,null,null,null,null,null,null,null,null,null,null,null,null,null,null,"TOTAL",{"$f":"SUM(AB4:AB12)","v":0},{"$f":"SUM(AC4:AC12)","v":0},0,"","","",{"$f":"SUM(AH4:AH12)","v":0},{"$f":"SUM(AI4:AI12)","v":0},0,{"$f":"SUM(AK4:AK12)","v":0},{"$f":"SUM(AL4:AL12)","v":0},0]
[]
[null,null,null,null,null,null,null,null,null,null,null,null,null,null,null,null,{"$f":"SUBTOTAL(9,Q18:Q359)","v":0},{"$f":"SUBTOTAL(9,R18:R359)","v":0},{"$f":"SUBTOTAL(9,S18:S359)","v":0},{"$f":"SUBTOTAL(9,T18:T359)","v":0},{"$f":"SUBTOTAL(9,U18:U359)","v":0},{"$f":"SUBTOTAL(9,V18:V359)","v":0},{"$f":"SUBTOTAL(9,W18:W359)","v":0},{"$f":"SUBTOTAL(9,X18:X359)","v":0},{"$f":"SUBTOTAL(9,Y18:Y359)","v":0},{"$f":"SUBTOTAL(9,Z18:Z359)","v":0},{"$f":"SUBTOTAL(9,AA18:AA359)","v":0},{"$f":"SUBTOTAL(9,AB18:AB359)","v":0},{"$f":"SUBTOTAL(9,AC18:AC359)","v":0},{"$f":"SUBTOTAL(9,AD18:AD359)","v":0},{"$f":"SUBTOTAL(9,AE18:AE359)","v":0},{"$f":"SUBTOTAL(9,AF18:AF359)","v":0},{"$f":"SUBTOTAL(9,AG18:AG359)","v":0},{"$f":"SUBTOTAL(9,AH18:AH359)","v":0},{"$f":"SUBTOTAL(9,AI18:AI359)","v":0},{"$f":"SUBTOTAL(9,AJ18:AJ359)","v":0},{"$f":"SUBTOTAL(9,AK18:AK359)","v":0},{"$f":"SUBTOTAL(9,AL18:AL359)","v":0},{"$f":"SUBTOTAL(9,AM18:AM359)","v":0}]
[null,null,null,null,null,null,null,null,null,null,null,null,null,null,null,"希望納期","12月",null,"1月",null,"2月",null,"3月",null,"4月",null,"5月",null,"6月",null,"数量合計",null,null,"上代合計",null,null,"下代合計"]
[null,"Catalog/LINE","ページ数","NEW C/O","CATEGORY","GENDER","早締め","品名(E)","品名(ｶﾅ)","カラー","上代（税抜）","発売月","品番","サイズ","JPｻｲｽﾞ(cm)","UPC","1st","Follow","1st","Follow","1st","Follow","1st","Follow","1st","Follow","1st","Follow","1st","Follow","1st","Follow","計","1st","Follow","計","1st","Follow","計","備考"]
[null,"Inline",93,"NEW","WORK","Men",null,"FORT WAYNE 6\" WP","フォート　ウェイン　シックス　ウォータープルーフ","Tortoise Shell/Gum",33000,4,"1027099","7   D",25,"195208125515",null,null,null,null,null,null,null,null,null,null,null,null,null,null,{"$f":"IF(SUMIF($Q$17:$AD$17,AE$17,$Q18:$AD18)=0,\"\",SUMIF($Q$17:$AD$17,AE$17,$Q18:$AD18))","v":""},"",{"$f":"IF(SUM(AE18:AF18)=0,\"\",SUM(AE18:AF18))","v":""},{"$f":"IF(ISERROR($K18*AE18),\"\",$K18*AE18)","v":""},{"$f":"IF(ISERROR($K18*AF18),\"\",$K18*AF18)","v":""},{"$f":"IF(SUM(AH18:AI18)=0,\"\",SUM(AH18:AI18))","v":""},{"$f":"IF(ISERROR($K18*AE18*$C$9),\"\",$K18*AE18*$C$9)","v":""},{"$f":"IF(ISERROR($K18*AF18*$C$9),\"\",$K18*AF18*$C$9)","v":""},{"$f":"IF(SUM(AK18:AL18)=0,\"\",SUM(AK18:AL18))","v":""}]
[null,"Inline",93,"NEW","WORK","Men",null,"FORT WAYNE 6\" WP","フォート　ウェイン　シックス　ウォータープルーフ","Tortoise Shell/Gum",33000,4,"1027099","7.5 D",25.5,"195208125492",null,null,null,null,null,null,null,null,null,null,null,null,null,null,"","","","","","","","",""]
[null,"Inline",93,"NEW","WORK","Men",null,"FORT WAYNE 6\" WP","フォート　ウェイン　シックス　ウォータープルーフ","Tortoise Shell/Gum",33000,4,"1027099","8   D",26,"195208125478",null,null,null,null,null,null,null,null,null,null,null,null,null,null,"","","","","","","","",""]
[null,"Inline",93,"NEW","WORK","Men",null,"FORT WAYNE 6\" WP","フォート　ウェイン　シックス　ウォータープルーフ","Tortoise Shell/Gum",33000,4,"1027099","8.5 D",26.5,"195208125454",null,null,null,null,null,null,null,null,null,null,null,null,null,null,"","","","","","","","",""]
[null,"Inline",93,"NEW","WORK","Men",null,"FORT WAYNE 6\" WP","フォート　ウェイン　シックス　ウォータープルーフ","Tortoise Shell/Gum",33000,4,"1027099","9   D",27,"195208125430",null,null,null,null,null,null,null,null,null,null,null,null,null,null,"","","","","","","","",""]
[null,"Inline",93,"NEW","WORK","Men",null,"FORT WAYNE 6\" WP","フォート　ウェイン　シックス　ウォータープルーフ","Tortoise Shell/Gum",33000,4,"1027099","9.5 D",27.5,"195208125416",null,null,null,null,null,null,null,null,null,null,null,null,null,null,"","","","","","","","",""]
[null,"Inline",93,"NEW","WORK","Men",null,"FORT WAYNE 6\" WP","フォート　ウェイン　シックス　ウォータープルーフ","Tortoise Shell/Gum",33000,4,"1027099","10  D",28,"195208125546",null,null,null,null,null,null,null,null,null,null,null,null,null,null,"","","","","","","","",""]
[null,"Inline",93,"NEW","WORK","Men",null,"FORT WAYNE 6\" WP","フォート　ウェイン　シックス　ウォータープルーフ","Tortoise Shell/Gum",33000,4,"1027099","10.5D",28.5,"195208125560",null,null,null,null,null,null,null,null,null,null,null,null,null,null,"","","","","","","","",""]
[null,"Inline",93,"NEW","WORK","Men",null,"FORT WAYNE 6\" WP","フォート　ウェイン　シックス　ウォータープルーフ","Tortoise Shell/Gum",33000,4,"1027099","11  D",29,"195208125584",null,null,null,null,null,null,null,null,null,null,null,null,null,null,"","","","","","","","",""]
[null,"Inline",93,"NEW","WORK","Men",null,"FORT WAYNE 6\" WP","フォート　ウェイン　シックス　ウォータープルーフ","Dark Earth/Gum",33000,4,"1027100","7   D",25,"195208125799",null,null,null,null,null,null,null,null,null,null,null,null,null,null,"","","","","","","","",""]
[null,"Inline",93,"NEW","WORK","Men",null,"FORT WAYNE 6\" WP","フォート　ウェイン　シックス　ウォータープルーフ","Dark Earth/Gum",33000,4,"1027100","7.5 D",25.5,"195208125775",null,null,null,null,null,null,null,null,null,null,null,null,null,null,"","","","","","","","",""]
[null,"Inline",93,"NEW","WORK","Men",null,"FORT WAYNE 6\" WP","フォート　ウェイン　シックス　ウォータープルーフ","Dark Earth/Gum",33000,4,"1027100","8   D",26,"195208125751",null,null,null,null,null,null,null,null,null,null,null,null,null,null,"","","","","","","","",""]
[null,"Inline",93,"NEW","WORK","Men",null,"FORT WAYNE 6\" WP","フォート　ウェイン　シックス　ウォータープルーフ","Dark Earth/Gum",33000,4,"1027100","8.5 D",26.5,"195208125737",null,null,null,null,null,null,null,null,null,null,null,null,null,null,"","","","","","","","",""]
[null,"Inline",93,"NEW","WORK","Men",null,"FORT WAYNE 6\" WP","フォート　ウェイン　シックス　ウォータープルーフ","Dark Earth/Gum",33000,4,"1027100","9   D",27,"195208125713",null,null,null,null,null,null,null,null,null,null,null,null,null,null,"","","","","","","","",""]
[null,"Inline",93,"NEW","WORK","Men",null,"FORT WAYNE 6\" WP","フォート　ウェイン　シックス　ウォータープルーフ","Dark Earth/Gum",33000,4,"1027100","9.5 D",27.5,"195208125690",null,null,null,null,null,null,null,null,null,null,null,null,null,null,"","","","","","","","",""]
[null,"Inline",93,"NEW","WORK","Men",null,"FORT WAYNE 6\" WP","フォート　ウェイン　シックス　ウォータープルーフ","Dark Earth/Gum",33000,4,"1027100","10  D",28,"195208125829",null,null,null,null,null,null,null,null,null,null,null,null,null,null,"","","","","","","","",""]
[null,"Inline",93,"NEW","WORK","Men",null,"FORT WAYNE 6\" WP","フォート　ウェイン　シックス　ウォータープルーフ","Dark Earth/Gum",33000,4,"1027100","10.5D",28.5,"195208125843",null,null,null,null,null,null,null,null,null,null,null,null,null,null,"","","","","","","","",""]
[null,"Inline",93,"NEW","WORK","Men",null,"FORT WAYNE 6\" WP","フォート　ウェイン　シックス　ウォータープルーフ","Dark Earth/Gum",33000,4,"1027100","11  D",29,"195208125867",null,null,null,null,null,null,null,null,null,null,null,null,null,null,"","","","","","","","",""]
[null,"Inline",94,"C/O","WORK","Men",null,"TROY 6\" KBF WP","トロイ　シックス　ケービーエフ　ウォータープルーフ ","Magnet/Black",35000,3,"1025697","7   D",25,"191190854334",null,null,null,null,null,null,null,null,null,null,null,null,null,null,{"$f":"IF(SUMIF($Q$17:$AD$17,AE$17,$Q36:$AD36)=0,\"\",SUMIF($Q$17:$AD$17,AE$17,$Q36:$AD36))","v":""},"",{"$f":"IF(SUM(AE36:AF36)=0,\"\",SUM(AE36:AF36))","v":""},{"$f":"IF(ISERROR($K36*AE36),\"\",$K36*AE36)","v":""},{"$f":"IF(ISERROR($K36*AF36),\"\",$K36*AF36)","v":""},{"$f":"IF(SUM(AH36:AI36)=0,\"\",SUM(AH36:AI36))","v":""},{"$f":"IF(ISERROR($K36*AE36*$C$9),\"\",$K36*AE36*$C$9)","v":""},{"$f":"IF(ISERROR($K36*AF36*$C$9),\"\",$K36*AF36*$C$9)","v":""},{"$f":"IF(SUM(AK36:AL36)=0,\"\",SUM(AK36:AL36))","v":""}]
[null,"Inline",94,"C/O","WORK","Men",null,"TROY 6\" KBF WP","トロイ　シックス　ケービーエフ　ウォータープルーフ ","Magnet/Black",35000,3,"1025697","7.5 D",25.5,"191190854310",null,null,null,null,null,null,null,null,null,null,null,null,null,null,"","","","","","","","",""]
[null,"Inline",94,"C/O","WORK","Men",null,"TROY 6\" KBF WP","トロイ　シックス　ケービーエフ　ウォータープルーフ ","Magnet/Black",35000,3,"1025697","8   D",26,"191190854297",null,null,null,null,null,null,null,null,null,null,null,null,null,null,"","","","","","","","",""]
[null,"Inline",94,"C/O","WORK","Men",null,"TROY 6\" KBF WP","トロイ　シックス　ケービーエフ　ウォータープルーフ ","Magnet/Black",35000,3,"1025697","8.5 D",26.5,"191190854273",null,null,null,null,null,null,null,null,null,null,null,null,null,null,"","","","","","","","",""]
[null,"Inline",94,"C/O","WORK","Men",null,"TROY 6\" KBF WP","トロイ　シックス　ケービーエフ　ウォータープルーフ ","Magnet/Black",35000,3,"1025697","9   D",27,"191190854259",null,null,null,null,null,null,null,null,null,null,null,null,null,null,"","","","","","","","",""]
[null,"Inline",94,"C/O","WORK","Men",null,"TROY 6\" KBF WP","トロイ　シックス　ケービーエフ　ウォータープルーフ ","Magnet/Black",35000,3,"1025697","9.5 D",27.5,"191190854235",null,null,null,null,null,null,null,null,null,null,null,null,null,null,"","","","","","","","",""]
[null,"Inline",94,"C/O","WORK","Men",null,"TROY 6\" KBF WP","トロイ　シックス　ケービーエフ　ウォータープルーフ ","Magnet/Black",35000,3,"1025697","10  D",28,"191190854495",null,null,null,null,null,null,null,null,null,null,null,null,null,null,"","","","","","","","",""]
[null,"Inline",94,"C/O","WORK","Men",null,"TROY 6\" KBF WP","トロイ　シックス　ケービーエフ　ウォータープルーフ ","Magnet/Black",35000,3,"1025697","10.5D",28.5,"191190854471",null,null,null,null,null,null,null,null,null,null,null,null,null,null,"","","","","","","","",""]
[null,"Inline",94,"C/O","WORK","Men",null,"TROY 6\" KBF WP","トロイ　シックス　ケービーエフ　ウォータープルーフ ","Magnet/Black",35000,3,"1025697","11  D",29,"191190854457",null,null,null,null,null,null,null,null,null,null,null,null,null,null,"","","","","","","","",""]
[null,"Inline",94,"C/O","WORK","Men",null,"TROY 6\" KBF WP","トロイ　シックス　ケービーエフ　ウォータープルーフ ","Dark Earth/Black",35000,3,"1025696","7   D",25,"191190854051",null,null,null,null,null,null,null,null,null,null,null,null,null,null,"","","","","","","","",""]
[null,"Inline",94,"C/O","WORK","Men",null,"TROY 6\" KBF WP","トロイ　シックス　ケービーエフ　ウォータープルーフ ","Dark Earth/Black",35000,3,"1025696","7.5 D",25.5,"191190854037",null,null,null,null,null,null,null,null,null,null,null,null,null,null,"","","","","","","","",""]
[null,"Inline",94,"C/O","WORK","Men",null,"TROY 6\" KBF WP","トロイ　シックス　ケービーエフ　ウォータープルーフ ","Dark Earth/Black",35000,3,"1025696","8   D",26,"191190854013",null,null,null,null,null,null,null,null,null,null,null,null,null,null,"","","","","","","","",""]
[null,"Inline",94,"C/O","WORK","Men",null,"TROY 6\" KBF WP","トロイ　シックス　ケービーエフ　ウォータープルーフ ","Dark Earth/Black",35000,3,"1025696","8.5 D",26.5,"191190853993",null,null,null,null,null,null,null,null,null,null,null,null,null,null,"","","","","","","","",""]
[null,"Inline",94,"C/O","WORK","Men",null,"TROY 6\" KBF WP","トロイ　シックス　ケービーエフ　ウォータープルーフ ","Dark Earth/Black",35000,3,"1025696","9   D",27,"191190853979",null,null,null,null,null,null,null,null,null,null,null,null,null,null,"","","","","","","","",""]
[null,"Inline",94,"C/O","WORK","Men",null,"TROY 6\" KBF WP","トロイ　シックス　ケービーエフ　ウォータープルーフ ","Dark Earth/Black",35000,3,"1025696","9.5 D",27.5,"191190853955",null,null,null,null,null,null,null,null,null,null,null,null,null,null,"","","","","","","","",""]
[null,"Inline",94,"C/O","WORK","Men",null,"TROY 6\" KBF WP","トロイ　シックス　ケービーエフ　ウォータープルーフ ","Dark Earth/Black",35000,3,"1025696","10  D",28,"191190854082",null,null,null,null,null,null,null,null,null,null,null,null,null,null,"","","","","","","","",""]
[null,"Inline",94,"C/O","WORK","Men",null,"TROY 6\" KBF WP","トロイ　シックス　ケービーエフ　ウォータープルーフ ","Dark Earth/Black",35000,3,"1025696","10.5D",28.5,"191190854105",null,null,null,null,null,null,null,null,null,null,null,null,null,null,"","","","","","","","",""]
[null,"Inline",94,"C/O","WORK","Men",null,"TROY 6\" KBF WP","トロイ　シックス　ケービーエフ　ウォータープルーフ ","Dark Earth/Black",35000,3,"1025696","11  D",29,"191190854129",null,null,null,null,null,null,null,null,null,null,null,null,null,null,"","","","","","","","",""]
[null,"Inline",95,"C/O","WORK","Men",null,"CSA HAMILTON CARBON WP","シーエスエー　ハミルトン　カーボン　ウォータープルーフ","Bison/Jester Red",23000,2,"1020096","7   D",25,"191190216361",null,null,null,null,null,null,null,null,null,null,null,null,null,null,"","","","","","","","",""]
[null,"Inline",95,"C/O","WORK","Men",null,"CSA HAMILTON CARBON WP","シーエスエー　ハミルトン　カーボン　ウォータープルーフ","Bison/Jester Red",23000,2,"1020096","7.5 D",25.5,"191190216347",null,null,null,null,null,null,null,null,null,null,null,null,null,null,"","","","","","","","",""]
[null,"Inline",95,"C/O","WORK","Men",null,"CSA HAMILTON CARBON WP","シーエスエー　ハミルトン　カーボン　ウォータープルーフ","Bison/Jester Red",23000,2,"1020096","8   D",26,"191190216323",null,null,null,null,null,null,null,null,null,null,null,null,null,null,"","","","","","","","",""]
[null,"Inline",95,"C/O","WORK","Men",null,"CSA HAMILTON CARBON WP","シーエスエー　ハミルトン　カーボン　ウォータープルーフ","Bison/Jester Red",23000,2,"1020096","8.5 D",26.5,"191190216309",null,null,null,null,null,null,null,null,null,null,null,null,null,null,"","","","","","","","",""]
[null,"Inline",95,"C/O","WORK","Men",null,"CSA HAMILTON CARBON WP","シーエスエー　ハミルトン　カーボン　ウォータープルーフ","Bison/Jester Red",23000,2,"1020096","9   D",27,"191190216286",null,null,null,null,null,null,null,null,null,null,null,null,null,null,"","","","","","","","",""]
[null,"Inline",95,"C/O","WORK","Men",null,"CSA HAMILTON CARBON WP","シーエスエー　ハミルトン　カーボン　ウォータープルーフ","Bison/Jester Red",23000,2,"1020096","9.5 D",27.5,"191190216262",null,null,null,null,null,null,null,null,null,null,null,null,null,null,"","","","","","","","",""]
[null,"Inline",95,"C/O","WORK","Men",null,"CSA HAMILTON CARBON WP","シーエスエー　ハミルトン　カーボン　ウォータープルーフ","Bison/Jester Red",23000,2,"1020096","10  D",28,"191190216392",null,null,null,null,null,null,null,null,null,null,null,null,null,null,"","","","","","","","",""]
[null,"Inline",95,"C/O","WORK","Men",null,"CSA HAMILTON CARBON WP","シーエスエー　ハミルトン　カーボン　ウォータープルーフ","Bison/Jester Red",23000,2,"1020096","10.5D",28.5,"191190216415",null,null,null,null,null,null,null,null,null,null,null,null,null,null,"","","","","","","","",""]
[null,"Inline",95,"C/O","WORK","Men",null,"CSA HAMILTON CARBON WP","シーエスエー　ハミルトン　カーボン　ウォータープルーフ","Bison/Jester Red",23000,2,"1020096","11  D",29,"191190216439",null,null,null,null,null,null,null,null,null,null,null,null,null,null,"","","","","","","","",""]
[null,"Inline",96,"C/O","WORK","Men",null,"PITTSBURGH ENERGY 6\" WP","ピッツバーグ　エナジー　シックス　ウォータープルーフ ","Cascade Brown/Greener Pastures",23000,2,"1026892","7   D",25,"195208089398",null,null,null,null,null,null,null,null,null,null,null,null,null,null,"","","","","","","","",""]
[null,"Inline",96,"C/O","WORK","Men",null,"PITTSBURGH ENERGY 6\" WP","ピッツバーグ　エナジー　シックス　ウォータープルーフ ","Cascade Brown/Greener Pastures",23000,2,"1026892","7.5 D",25.5,"195208089374",null,null,null,null,null,null,null,null,null,null,null,null,null,null,"","","","","","","","",""]
[null,"Inline",96,"C/O","WORK","Men",null,"PITTSBURGH ENERGY 6\" WP","ピッツバーグ　エナジー　シックス　ウォータープルーフ ","Cascade Brown/Greener Pastures",23000,2,"1026892","8   D",26,"195208089350",null,null,null,null,null,null,null,null,null,null,null,null,null,null,"","","","","","","","",""]
[null,"Inline",96,"C/O","WORK","Men",null,"PITTSBURGH ENERGY 6\" WP","ピッツバーグ　エナジー　シックス　ウォータープルーフ ","Cascade Brown/Greener Pastures",23000,2,"1026892","8.5 D",26.5,"195208089336",null,null,null,null,null,null,null,null,null,null,null,null,null,null,"","","","","","","","",""]
[null,"Inline",96,"C/O","WORK","Men",null,"PITTSBURGH ENERGY 6\" WP","ピッツバーグ　エナジー　シックス　ウォータープルーフ ","Cascade Brown/Greener Pastures",23000,2,"1026892","9   D",27,"195208089312",null,null,null,null,null,null,null,null,null,null,null,null,null,null,"","","","","","","","",""]
[null,"Inline",96,"C/O","WORK","Men",null,"PITTSBURGH ENERGY 6\" WP","ピッツバーグ　エナジー　シックス　ウォータープルーフ ","Cascade Brown/Greener Pastures",23000,2,"1026892","9.5 D",27.5,"195208089299",null,null,null,null,null,null,null,null,null,null,null,null,null,null,"","","","","","","","",""]
[null,"Inline",96,"C/O","WORK","Men",null,"PITTSBURGH ENERGY 6\" WP","ピッツバーグ　エナジー　シックス　ウォータープルーフ ","Cascade Brown/Greener Pastures",23000,2,"1026892","10  D",28,"195208089428",null,null,null,null,null,null,null,null,null,null,null,null,null,null,"","","","","","","","",""]
[null,"Inline",96,"C/O","WORK","Men",null,"PITTSBURGH ENERGY 6\" WP","ピッツバーグ　エナジー　シックス　ウォータープルーフ ","Cascade Brown/Greener Pastures",23000,2,"1026892","10.5D",28.5,"195208089442",null,null,null,null,null,null,null,null,null,null,null,null,null,null,"","","","","","","","",""]
[null,"Inline",96,"C/O","WORK","Men",null,"PITTSBURGH ENERGY 6\" WP","ピッツバーグ　エナジー　シックス　ウォータープルーフ ","Cascade Brown/Greener Pastures",23000,2,"1026892","11  D",29,"195208089466",null,null,null,null,null,null,null,null,null,null,null,null,null,null,"","","","","","","","",""]
[null,"Inline",96,"C/O","WORK","Men",null,"PITTSBURGH ENERGY 6\" WP","ピッツバーグ　エナジー　シックス　ウォータープルーフ ","Cascade Brown/Greener Pastures",23000,2,"1026892","11.5D",29.5,"195208089480",null,null,null,null,null,null,null,null,null,null,null,null,null,null,"","","","","","","","",""]
[null,"Inline",96,"C/O","WORK","Men",null,"PITTSBURGH ENERGY 6\" WP","ピッツバーグ　エナジー　シックス　ウォータープルーフ ","Cascade Brown/Greener Pastures",23000,2,"1026892","12  D",30,"195208089503",null,null,null,null,null,null,null,null,null,null,null,null,null,null,"","","","","","","","",""]
[null,"Inline",96,"C/O","WORK","Men",null,"PITTSBURGH ENERGY 6\" WP","ピッツバーグ　エナジー　シックス　ウォータープルーフ ","Black/Forged Iron",23000,2,"1026835","7   D",25,"195208071089",null,null,null,null,null,null,null,null,null,null,null,null,null,null,"","","","","","","","",""]
[null,"Inline",96,"C/O","WORK","Men",null,"PITTSBURGH ENERGY 6\" WP","ピッツバーグ　エナジー　シックス　ウォータープルーフ ","Black/Forged Iron",23000,2,"1026835","7.5 D",25.5,"195208071102",null,null,null,null,null,null,null,null,null,null,null,null,null,null,"","","","","","","","",""]
[null,"Inline",96,"C/O","WORK","Men",null,"PITTSBURGH ENERGY 6\" WP","ピッツバーグ　エナジー　シックス　ウォータープルーフ ","Black/Forged Iron",23000,2,"1026835","8   D",26,"195208071126",null,null,null,null,null,null,null,null,null,null,null,null,null,null,"","","","","","","","",""]
[null,"Inline",96,"C/O","WORK","Men",null,"PITTSBURGH ENERGY 6\" WP","ピッツバーグ　エナジー　シックス　ウォータープルーフ ","Black/Forged Iron",23000,2,"1026835","8.5 D",26.5,"195208071140",null,null,null,null,null,null,null,null,null,null,null,null,null,null,"","","","","","","","",""]
[null,"Inline",96,"C/O","WORK","Men",null,"PITTSBURGH ENERGY 6\" WP","ピッツバーグ　エナジー　シックス　ウォータープルーフ ","Black/Forged Iron",23000,2,"1026835","9   D",27,"195208071164",null,null,null,null,null,null,null,null,null,null,null,null,null,null,"","","","","","","","",""]
[null,"Inline",96,"C/O","WORK","Men",null,"PITTSBURGH ENERGY 6\" WP","ピッツバーグ　エナジー　シックス　ウォータープルーフ ","Black/Forged Iron",23000,2,"1026835","9.5 D",27.5,"195208071188",null,null,null,null,null,null,null,null,null,null,null,null,null,null,"","","","","","","","",""]
[null,"Inline",96,"C/O","WORK","Men",null,"PITTSBURGH ENERGY 6\" WP","ピッツバーグ　エナジー　シックス　ウォータープルーフ ","Black/Forged Iron",23000,2,"1026835","10  D",28,"195208071201",null,null,null,null,null,null,null,null,null,null,null,null,null,null,"","","","","","","","",""]
[null,"Inline",96,"C/O","WORK","Men",null,"PITTSBURGH ENERGY 6\" WP","ピッツバーグ　エナジー　シックス　ウォータープルーフ ","Black/Forged Iron",23000,2,"1026835","10.5D",28.5,"195208071225",null,null,null,null,null,null,null,null,null,null,null,null,null,null,"","","","","","","","",""]
[null,"Inline",96,"C/O","WORK","Men",null,"PITTSBURGH ENERGY 6\" WP","ピッツバーグ　エナジー　シックス　ウォータープルーフ ","Black/Forged Iron",23000,2,"1026835","11  D",29,"195208071249",null,null,null,null,null,null,null,null,null,null,null,null,null,null,"","","","","","","","",""]
[null,"Inline",96,"C/O","WORK","Men",null,"PITTSBURGH ENERGY 6\" WP","ピッツバーグ　エナジー　シックス　ウォータープルーフ ","Black/Forged Iron",23000,2,"1026835","11.5D",29.5,"195208071263",null,null,null,null,null,null,null,null,null,null,null,null,null,null,"","","","","","","","",""]
[null,"Inline",96,"C/O","WORK","Men",null,"PITTSBURGH ENERGY 6\" WP","ピッツバーグ　エナジー　シックス　ウォータープルーフ ","Black/Forged Iron",23000,2,"1026835","12  D",30,"195208071287",null,null,null,null,null,null,null,null,null,null,null,null,null,null,"","","","","","","","",""]
[null,"Inline",97,"C/O","WORK","Men",null,"FLINT II WP","フリント　ツー　ウォータープルーフ ","Cascade Brown/Orion Blue",20000,2,"1023236","7   D",25,"191190543283",null,null,null,null,null,null,null,null,null,null,null,null,null,null,"","","","","","","","",""]
[null,"Inline",97,"C/O","WORK","Men",null,"FLINT II WP","フリント　ツー　ウォータープルーフ ","Cascade Brown/Orion Blue",20000,2,"1023236","7.5 D",25.5,"191190543269",null,null,null,null,null,null,null,null,null,null,null,null,null,null,"","","","","","","","",""]
[null,"Inline",97,"C/O","WORK","Men",null,"FLINT II WP","フリント　ツー　ウォータープルーフ ","Cascade Brown/Orion Blue",20000,2,"1023236","8   D",26,"191190543245",null,null,null,null,null,null,null,null,null,null,null,null,null,null,"","","","","","","","",""]
[null,"Inline",97,"C/O","WORK","Men",null,"FLINT II WP","フリント　ツー　ウォータープルーフ ","Cascade Brown/Orion Blue",20000,2,"1023236","8.5 D",26.5,"191190543221",null,null,null,null,null,null,null,null,null,null,null,null,null,null,"","","","","","","","",""]
[null,"Inline",97,"C/O","WORK","Men",null,"FLINT II WP","フリント　ツー　ウォータープルーフ ","Cascade Brown/Orion Blue",20000,2,"1023236","9   D",27,"191190543207",null,null,null,null,null,null,null,null,null,null,null,null,null,null,"","","","","","","","",""]
[null,"Inline",97,"C/O","WORK","Men",null,"FLINT II WP","フリント　ツー　ウォータープルーフ ","Cascade Brown/Orion Blue",20000,2,"1023236","9.5 D",27.5,"191190543184",null,null,null,null,null,null,null,null,null,null,null,null,null,null,"","","","","","","","",""]
[null,"Inline",97,"C/O","WORK","Men",null,"FLINT II WP","フリント　ツー　ウォータープルーフ ","Cascade Brown/Orion Blue",20000,2,"1023236","10  D",28,"191190543313",null,null,null,null,null,null,null,null,null,null,null,null,null,null,"","","","","","","","",""]
[null,"Inline",97,"C/O","WORK","Men",null,"FLINT II WP","フリント　ツー　ウォータープルーフ ","Cascade Brown/Orion Blue",20000,2,"1023236","10.5D",28.5,"191190543337",null,null,null,null,null,null,null,null,null,null,null,null,null,null,"","","","","","","","",""]
[null,"Inline",97,"C/O","WORK","Men",null,"FLINT II WP","フリント　ツー　ウォータープルーフ ","Cascade Brown/Orion Blue",20000,2,"1023236","11  D",29,"191190543351",null,null,null,null,null,null,null,null,null,null,null,null,null,null,"","","","","","","","",""]
[null,"Inline",98,"NEW","WORK","Men",null,"SAN JOSE 6\" WP","サンノゼ　シックス　ウォータープルーフ","Sky Captain/Star White",25000,3,"1027081","7   D",25,"195208120794",null,null,null,null,null,null,null,null,null,null,null,null,null,null,"","","","","","","","",""]
[null,"Inline",98,"NEW","WORK","Men",null,"SAN JOSE 6\" WP","サンノゼ　シックス　ウォータープルーフ","Sky Captain/Star White",25000,3,"1027081","7.5 D",25.5,"195208120770",null,null,null,null,null,null,null,null,null,null,null,null,null,null,"","","","","","","","",""]
[null,"Inline",98,"NEW","WORK","Men",null,"SAN JOSE 6\" WP","サンノゼ　シックス　ウォータープルーフ","Sky Captain/Star White",25000,3,"1027081","8   D",26,"195208120756",null,null,null,null,null,null,null,null,null,null,null,null,null,null,"","","","","","","","",""]
[null,"Inline",98,"NEW","WORK","Men",null,"SAN JOSE 6\" WP","サンノゼ　シックス　ウォータープルーフ","Sky Captain/Star White",25000,3,"1027081","8.5 D",26.5,"195208120732",null,null,null,null,null,null,null,null,null,null,null,null,null,null,"","","","","","","","",""]
[null,"Inline",98,"NEW","WORK","Men",null,"SAN JOSE 6\" WP","サンノゼ　シックス　ウォータープルーフ","Sky Captain/Star White",25000,3,"1027081","9   D",27,"195208120718",null,null,null,null,null,null,null,null,null,null,null,null,null,null,"","","","","","","","",""]
[null,"Inline",98,"NEW","WORK","Men",null,"SAN JOSE 6\" WP","サンノゼ　シックス　ウォータープルーフ","Sky Captain/Star White",25000,3,"1027081","9.5 D",27.5,"195208120695",null,null,null,null,null,null,null,null,null,null,null,null,null,null,"","","","","","","","",""]
[null,"Inline",98,"NEW","WORK","Men",null,"SAN JOSE 6\" WP","サンノゼ　シックス　ウォータープルーフ","Sky Captain/Star White",25000,3,"1027081","10  D",28,"195208120824",null,null,null,null,null,null,null,null,null,null,null,null,null,null,{"$f":"IF(SUMIF($Q$17:$AD$17,AE$17,$Q100:$AD100)=0,\"\",SUMIF($Q$17:$AD$17,AE$17,$Q100:$AD100))","v":""},"",{"$f":"IF(SUM(AE100:AF100)=0,\"\",SUM(AE100:AF100))","v":""},{"$f":"IF(ISERROR($K100*AE100),\"\",$K100*AE100)","v":""},{"$f":"IF(ISERROR($K100*AF100),\"\",$K100*AF100)","v":""},{"$f":"IF(SUM(AH100:AI100)=0,\"\",SUM(AH100:AI100))","v":""},{"$f":"IF(ISERROR($K100*AE100*$C$9),\"\",$K100*AE100*$C$9)","v":""},{"$f":"IF(ISERROR($K100*AF100*$C$9),\"\",$K100*AF100*$C$9)","v":""},{"$f":"IF(SUM(AK100:AL100)=0,\"\",SUM(AK100:AL100))","v":""}]
[null,"Inline",98,"NEW","WORK","Men",null,"SAN JOSE 6\" WP","サンノゼ　シックス　ウォータープルーフ","Sky Captain/Star White",25000,3,"1027081","10.5D",28.5,"195208120848",null,null,null,null,null,null,null,null,null,null,null,null,null,null,"","","","","","","","",""]
[null,"Inline",98,"NEW","WORK","Men",null,"SAN JOSE 6\" WP","サンノゼ　シックス　ウォータープルーフ","Sky Captain/Star White",25000,3,"1027081","11  D",29,"195208120862",null,null,null,null,null,null,null,null,null,null,null,null,null,null,"","","","","","","","",""]
[null,"Inline",98,"NEW","WORK","Men",null,"SAN JOSE 6\" WP","サンノゼ　シックス　ウォータープルーフ","Sky Captain/Star White",25000,3,"1027081","11.5D",29.5,"195208120886",null,null,null,null,null,null,null,null,null,null,null,null,null,null,"","","","","","","","",""]
[null,"Inline",98,"NEW","WORK","Men",null,"SAN JOSE 6\" WP","サンノゼ　シックス　ウォータープルーフ","Sky Captain/Star White",25000,3,"1027081","12  D",30,"195208120909",null,null,null,null,null,null,null,null,null,null,null,null,null,null,"","","","","","","","",""]
[null,"Inline",98,"NEW","WORK","Men",null,"SAN JOSE 6\" WP","サンノゼ　シックス　ウォータープルーフ","Tortoise Shell/Star White",25000,3,"1027080","7   D",25,"195208120510",null,null,null,null,null,null,null,null,null,null,null,null,null,null,"","","","","","","","",""]
[null,"Inline",98,"NEW","WORK","Men",null,"SAN JOSE 6\" WP","サンノゼ　シックス　ウォータープルーフ","Tortoise Shell/Star White",25000,3,"1027080","7.5 D",25.5,"195208120497",null,null,null,null,null,null,null,null,null,null,null,null,null,null,"","","","","","","","",""]
[null,"Inline",98,"NEW","WORK","Men",null,"SAN JOSE 6\" WP","サンノゼ　シックス　ウォータープルーフ","Tortoise Shell/Star White",25000,3,"1027080","8   D",26,"195208120473",null,null,null,null,null,null,null,null,null,null,null,null,null,null,"","","","","","","","",""]
[null,"Inline",98,"NEW","WORK","Men",null,"SAN JOSE 6\" WP","サンノゼ　シックス　ウォータープルーフ","Tortoise Shell/Star White",25000,3,"1027080","8.5 D",26.5,"195208120459",null,null,null,null,null,null,null,null,null,null,null,null,null,null,"","","","","","","","",""]
[null,"Inline",98,"NEW","WORK","Men",null,"SAN JOSE 6\" WP","サンノゼ　シックス　ウォータープルーフ","Tortoise Shell/Star White",25000,3,"1027080","9   D",27,"195208120435",null,null,null,null,null,null,null,null,null,null,null,null,null,null,"","","","","","","","",""]
[null,"Inline",98,"NEW","WORK","Men",null,"SAN JOSE 6\" WP","サンノゼ　シックス　ウォータープルーフ","Tortoise Shell/Star White",25000,3,"1027080","9.5 D",27.5,"195208120411",null,null,null,null,null,null,null,null,null,null,null,null,null,null,"","","","","","","","",""]
[null,"Inline",98,"NEW","WORK","Men",null,"SAN JOSE 6\" WP","サンノゼ　シックス　ウォータープルーフ","Tortoise Shell/Star White",25000,3,"1027080","10  D",28,"195208120541",null,null,null,null,null,null,null,null,null,null,null,null,null,null,"","","","","","","","",""]
[null,"Inline",98,"NEW","WORK","Men",null,"SAN JOSE 6\" WP","サンノゼ　シックス　ウォータープルーフ","Tortoise Shell/Star White",25000,3,"1027080","10.5D",28.5,"195208120565",null,null,null,null,null,null,null,null,null,null,null,null,null,null,"","","","","","","","",""]
[null,"Inline",98,"NEW","WORK","Men",null,"SAN JOSE 6\" WP","サンノゼ　シックス　ウォータープルーフ","Tortoise Shell/Star White",25000,3,"1027080","11  D",29,"195208120589",null,null,null,null,null,null,null,null,null,null,null,null,null,null,"","","","","","","","",""]
[null,"Inline",98,"NEW","WORK","Men",null,"SAN JOSE 6\" WP","サンノゼ　シックス　ウォータープルーフ","Tortoise Shell/Star White",25000,3,"1027080","11.5D",29.5,"195208120602",null,null,null,null,null,null,null,null,null,null,null,null,null,null,"","","","","","","","",""]
[null,"Inline",98,"NEW","WORK","Men",null,"SAN JOSE 6\" WP","サンノゼ　シックス　ウォータープルーフ","Tortoise Shell/Star White",25000,3,"1027080","12  D",30,"195208120626",null,null,null,null,null,null,null,null,null,null,null,null,null,null,"","","","","","","","",""]
[null,"Inline",98,"NEW","WORK","Men",null,"SAN JOSE 6\" SOFT","サンノゼ　シックス　ソフト","Coffee Bean/Star White",22500,2,"1027119","7   D",25,"195208130922",null,null,null,null,null,null,null,null,null,null,null,null,null,null,"","","","","","","","",""]
[null,"Inline",98,"NEW","WORK","Men",null,"SAN JOSE 6\" SOFT","サンノゼ　シックス　ソフト","Coffee Bean/Star White",22500,2,"1027119","7.5 D",25.5,"195208130885",null,null,null,null,null,null,null,null,null,null,null,null,null,null,"","","","","","","","",""]
[null,"Inline",98,"NEW","WORK","Men",null,"SAN JOSE 6\" SOFT","サンノゼ　シックス　ソフト","Coffee Bean/Star White",22500,2,"1027119","8   D",26,"195208130908",null,null,null,null,null,null,null,null,null,null,null,null,null,null,"","","","","","","","",""]
[null,"Inline",98,"NEW","WORK","Men",null,"SAN JOSE 6\" SOFT","サンノゼ　シックス　ソフト","Coffee Bean/Star White",22500,2,"1027119","8.5 D",26.5,"195208130960",null,null,null,null,null,null,null,null,null,null,null,null,null,null,"","","","","","","","",""]
[null,"Inline",98,"NEW","WORK","Men",null,"SAN JOSE 6\" SOFT","サンノゼ　シックス　ソフト","Coffee Bean/Star White",22500,2,"1027119","9   D",27,"195208130984",null,null,null,null,null,null,null,null,null,null,null,null,null,null,"","","","","","","","",""]
[null,"Inline",98,"NEW","WORK","Men",null,"SAN JOSE 6\" SOFT","サンノゼ　シックス　ソフト","Coffee Bean/Star White",22500,2,"1027119","9.5 D",27.5,"195208131004",null,null,null,null,null,null,null,null,null,null,null,null,null,null,"","","","","","","","",""]
[null,"Inline",98,"NEW","WORK","Men",null,"SAN JOSE 6\" SOFT","サンノゼ　シックス　ソフト","Coffee Bean/Star White",22500,2,"1027119","10  D",28,"195208131158",null,null,null,null,null,null,null,null,null,null,null,null,null,null,"","","","","","","","",""]
[null,"Inline",98,"NEW","WORK","Men",null,"SAN JOSE 6\" SOFT","サンノゼ　シックス　ソフト","Coffee Bean/Star White",22500,2,"1027119","10.5D",28.5,"195208131134",null,null,null,null,null,null,null,null,null,null,null,null,null,null,"","","","","","","","",""]
[null,"Inline",98,"NEW","WORK","Men",null,"SAN JOSE 6\" SOFT","サンノゼ　シックス　ソフト","Coffee Bean/Star White",22500,2,"1027119","11  D",29,"195208131110",null,null,null,null,null,null,null,null,null,null,null,null,null,null,"","","","","","","","",""]
[null,"Inline",98,"C/O","WORK","Men",null,"SAN JOSE 6\" SOFT","サンノゼ　シックス　ソフト","Gingerbread/Off White",22500,2,"1020146","7   D",25,"191190221754",null,null,null,null,null,null,null,null,null,null,null,null,null,null,"","","","","","","","",""]
[null,"Inline",98,"C/O","WORK","Men",null,"SAN JOSE 6\" SOFT","サンノゼ　シックス　ソフト","Gingerbread/Off White",22500,2,"1020146","7.5 D",25.5,"191190221730",null,null,null,null,null,null,null,null,null,null,null,null,null,null,"","","","","","","","",""]
[null,"Inline",98,"C/O","WORK","Men",null,"SAN JOSE 6\" SOFT","サンノゼ　シックス　ソフト","Gingerbread/Off White",22500,2,"1020146","8   D",26,"191190221716",null,null,null,null,null,null,null,null,null,null,null,null,null,null,"","","","","","","","",""]
[null,"Inline",98,"C/O","WORK","Men",null,"SAN JOSE 6\" SOFT","サンノゼ　シックス　ソフト","Gingerbread/Off White",22500,2,"1020146","8.5 D",26.5,"191190221693",null,null,null,null,null,null,null,null,null,null,null,null,null,null,"","","","","","","","",""]
[null,"Inline",98,"C/O","WORK","Men",null,"SAN JOSE 6\" SOFT","サンノゼ　シックス　ソフト","Gingerbread/Off White",22500,2,"1020146","9   D",27,"191190221679",null,null,null,null,null,null,null,null,null,null,null,null,null,null,"","","","","","","","",""]
[null,"Inline",98,"C/O","WORK","Men",null,"SAN JOSE 6\" SOFT","サンノゼ　シックス　ソフト","Gingerbread/Off White",22500,2,"1020146","9.5 D",27.5,"191190221655",null,null,null,null,null,null,null,null,null,null,null,null,null,null,"","","","","","","","",""]
[null,"Inline",98,"C/O","WORK","Men",null,"SAN JOSE 6\" SOFT","サンノゼ　シックス　ソフト","Gingerbread/Off White",22500,2,"1020146","10  D",28,"191190221785",null,null,null,null,null,null,null,null,null,null,null,null,null,null,"","","","","","","","",""]
[null,"Inline",98,"C/O","WORK","Men",null,"SAN JOSE 6\" SOFT","サンノゼ　シックス　ソフト","Gingerbread/Off White",22500,2,"1020146","10.5D",28.5,"191190221808",null,null,null,null,null,null,null,null,null,null,null,null,null,null,"","","","","","","","",""]
[null,"Inline",98,"C/O","WORK","Men",null,"SAN JOSE 6\" SOFT","サンノゼ　シックス　ソフト","Gingerbread/Off White",22500,2,"1020146","11  D",29,"191190221822",null,null,null,null,null,null,null,null,null,null,null,null,null,null,"","","","","","","","",""]
[null,"Inline",99,"C/O","WORK","Men",null,"SAN JOSE OXFORD","サンノゼ　オックスフォード","Black/Off White",19000,2,"1026708","7   D",25,"195208053696",null,null,null,null,null,null,null,null,null,null,null,null,null,null,"","","","","","","","",""]
[null,"Inline",99,"C/O","WORK","Men",null,"SAN JOSE OXFORD","サンノゼ　オックスフォード","Black/Off White",19000,2,"1026708","7.5 D",25.5,"195208053672",null,null,null,null,null,null,null,null,null,null,null,null,null,null,"","","","","","","","",""]
[null,"Inline",99,"C/O","WORK","Men",null,"SAN JOSE OXFORD","サンノゼ　オックスフォード","Black/Off White",19000,2,"1026708","8   D",26,"195208053658",null,null,null,null,null,null,null,null,null,null,null,null,null,null,"","","","","","","","",""]
[null,"Inline",99,"C/O","WORK","Men",null,"SAN JOSE OXFORD","サンノゼ　オックスフォード","Black/Off White",19000,2,"1026708","8.5 D",26.5,"195208053634",null,null,null,null,null,null,null,null,null,null,null,null,null,null,"","","","","","","","",""]
[null,"Inline",99,"C/O","WORK","Men",null,"SAN JOSE OXFORD","サンノゼ　オックスフォード","Black/Off White",19000,2,"1026708","9   D",27,"195208053610",null,null,null,null,null,null,null,null,null,null,null,null,null,null,"","","","","","","","",""]
[null,"Inline",99,"C/O","WORK","Men",null,"SAN JOSE OXFORD","サンノゼ　オックスフォード","Black/Off White",19000,2,"1026708","9.5 D",27.5,"195208053597",null,null,null,null,null,null,null,null,null,null,null,null,null,null,"","","","","","","","",""]
[null,"Inline",99,"C/O","WORK","Men",null,"SAN JOSE OXFORD","サンノゼ　オックスフォード","Black/Off White",19000,2,"1026708","10  D",28,"195208053856",null,null,null,null,null,null,null,null,null,null,null,null,null,null,"","","","","","","","",""]
[null,"Inline",99,"C/O","WORK","Men",null,"SAN JOSE OXFORD","サンノゼ　オックスフォード","Black/Off White",19000,2,"1026708","10.5D",28.5,"195208053832",null,null,null,null,null,null,null,null,null,null,null,null,null,null,"","","","","","","","",""]
[null,"Inline",99,"C/O","WORK","Men",null,"SAN JOSE OXFORD","サンノゼ　オックスフォード","Black/Off White",19000,2,"1026708","11  D",29,"195208053818",null,null,null,null,null,null,null,null,null,null,null,null,null,null,"","","","","","","","",""]
[null,"Inline",99,"C/O","WORK","Men",null,"SAN JOSE OXFORD SOFT TOE","サンノゼ　オックスフォード ソフト　トゥ","Gingerbread/Off White",18500,2,"1026788","7   D",25,"195208063503",null,null,null,null,null,null,null,null,null,null,null,null,null,null,"","","","","","","","",""]
[null,"Inline",99,"C/O","WORK","Men",null,"SAN JOSE OXFORD SOFT TOE","サンノゼ　オックスフォード ソフト　トゥ","Gingerbread/Off White",18500,2,"1026788","7.5 D",25.5,"195208063480",null,null,null,null,null,null,null,null,null,null,null,null,null,null,"","","","","","","","",""]
[null,"Inline",99,"C/O","WORK","Men",null,"SAN JOSE OXFORD SOFT TOE","サンノゼ　オックスフォード ソフト　トゥ","Gingerbread/Off White",18500,2,"1026788","8   D",26,"195208063466",null,null,null,null,null,null,null,null,null,null,null,null,null,null,"","","","","","","","",""]
[null,"Inline",99,"C/O","WORK","Men",null,"SAN JOSE OXFORD SOFT TOE","サンノゼ　オックスフォード ソフト　トゥ","Gingerbread/Off White",18500,2,"1026788","8.5 D",26.5,"195208063442",null,null,null,null,null,null,null,null,null,null,null,null,null,null,"","","","","","","","",""]
[null,"Inline",99,"C/O","WORK","Men",null,"SAN JOSE OXFORD SOFT TOE","サンノゼ　オックスフォード ソフト　トゥ","Gingerbread/Off White",18500,2,"1026788","9   D",27,"195208063428",null,null,null,null,null,null,null,null,null,null,null,null,null,null,"","","","","","","","",""]
[null,"Inline",99,"C/O","WORK","Men",null,"SAN JOSE OXFORD SOFT TOE","サンノゼ　オックスフォード ソフト　トゥ","Gingerbread/Off White",18500,2,"1026788","9.5 D",27.5,"195208063404",null,null,null,null,null,null,null,null,null,null,null,null,null,null,"","","","","","","","",""]
[null,"Inline",99,"C/O","WORK","Men",null,"SAN JOSE OXFORD SOFT TOE","サンノゼ　オックスフォード ソフト　トゥ","Gingerbread/Off White",18500,2,"1026788","10  D",28,"195208063534",null,null,null,null,null,null,null,null,null,null,null,null,null,null,"","","","","","","","",""]
[null,"Inline",99,"C/O","WORK","Men",null,"SAN JOSE OXFORD SOFT TOE","サンノゼ　オックスフォード ソフト　トゥ","Gingerbread/Off White",18500,2,"1026788","10.5D",28.5,"195208063558",null,null,null,null,null,null,null,null,null,null,null,null,null,null,"","","","","","","","",""]
[null,"Inline",99,"C/O","WORK","Men",null,"SAN JOSE OXFORD SOFT TOE","サンノゼ　オックスフォード ソフト　トゥ","Gingerbread/Off White",18500,2,"1026788","11  D",29,"195208063572",null,null,null,null,null,null,null,null,null,null,null,null,null,null,"","","","","","","","",""]
[null,"Inline",100,"C/O","WORK","Men",null,"SEATTLE ROMEO","シアトル　ロメオ","Cascade Brown/Gum",20500,2,"1021344","7   D",25,"191190328903",null,null,null,null,null,null,null,null,null,null,null,null,null,null,"","","","","","","","",""]
[null,"Inline",100,"C/O","WORK","Men",null,"SEATTLE ROMEO","シアトル　ロメオ","Cascade Brown/Gum",20500,2,"1021344","7.5 D",25.5,"191190328880",null,null,null,null,null,null,null,null,null,null,null,null,null,null,"","","","","","","","",""]
[null,"Inline",100,"C/O","WORK","Men",null,"SEATTLE ROMEO","シアトル　ロメオ","Cascade Brown/Gum",20500,2,"1021344","8   D",26,"191190328866",null,null,null,null,null,null,null,null,null,null,null,null,null,null,"","","","","","","","",""]
[null,"Inline",100,"C/O","WORK","Men",null,"SEATTLE ROMEO","シアトル　ロメオ","Cascade Brown/Gum",20500,2,"1021344","8.5 D",26.5,"191190328842",null,null,null,null,null,null,null,null,null,null,null,null,null,null,"","","","","","","","",""]
[null,"Inline",100,"C/O","WORK","Men",null,"SEATTLE ROMEO","シアトル　ロメオ","Cascade Brown/Gum",20500,2,"1021344","9   D",27,"191190328828",null,null,null,null,null,null,null,null,null,null,null,null,null,null,"","","","","","","","",""]
[null,"Inline",100,"C/O","WORK","Men",null,"SEATTLE ROMEO","シアトル　ロメオ","Cascade Brown/Gum",20500,2,"1021344","9.5 D",27.5,"191190328804",null,null,null,null,null,null,null,null,null,null,null,null,null,null,"","","","","","","","",""]
[null,"Inline",100,"C/O","WORK","Men",null,"SEATTLE ROMEO","シアトル　ロメオ","Cascade Brown/Gum",20500,2,"1021344","10  D",28,"191190328934",null,null,null,null,null,null,null,null,null,null,null,null,null,null,"","","","","","","","",""]
[null,"Inline",100,"C/O","WORK","Men",null,"SEATTLE ROMEO","シアトル　ロメオ","Cascade Brown/Gum",20500,2,"1021344","10.5D",28.5,"191190328958",null,null,null,null,null,null,null,null,null,null,null,null,null,null,"","","","","","","","",""]
[null,"Inline",100,"C/O","WORK","Men",null,"SEATTLE ROMEO","シアトル　ロメオ","Cascade Brown/Gum",20500,2,"1021344","11  D",29,"191190328972",null,null,null,null,null,null,null,null,null,null,null,null,null,null,"","","","","","","","",""]
[null,"Inline",101,"C/O","WORK","Men",null,"SEATTLE ROMEO SOFT TOE","シアトル　ロメオ ソフト　トゥ","Cascade Brown/Black",20000,2,"1024261","7   D",25,"191190681749",null,null,null,null,null,null,null,null,null,null,null,null,null,null,"","","","","","","","",""]
[null,"Inline",101,"C/O","WORK","Men",null,"SEATTLE ROMEO SOFT TOE","シアトル　ロメオ ソフト　トゥ","Cascade Brown/Black",20000,2,"1024261","7.5 D",25.5,"191190681725",null,null,null,null,null,null,null,null,null,null,null,null,null,null,"","","","","","","","",""]
[null,"Inline",101,"C/O","WORK","Men",null,"SEATTLE ROMEO SOFT TOE","シアトル　ロメオ ソフト　トゥ","Cascade Brown/Black",20000,2,"1024261","8   D",26,"191190681701",null,null,null,null,null,null,null,null,null,null,null,null,null,null,"","","","","","","","",""]
[null,"Inline",101,"C/O","WORK","Men",null,"SEATTLE ROMEO SOFT TOE","シアトル　ロメオ ソフト　トゥ","Cascade Brown/Black",20000,2,"1024261","8.5 D",26.5,"191190681688",null,null,null,null,null,null,null,null,null,null,null,null,null,null,{"$f":"IF(SUMIF($Q$17:$AD$17,AE$17,$Q164:$AD164)=0,\"\",SUMIF($Q$17:$AD$17,AE$17,$Q164:$AD164))","v":""},"",{"$f":"IF(SUM(AE164:AF164)=0,\"\",SUM(AE164:AF164))","v":""},{"$f":"IF(ISERROR($K164*AE164),\"\",$K164*AE164)","v":""},{"$f":"IF(ISERROR($K164*AF164),\"\",$K164*AF164)","v":""},{"$f":"IF(SUM(AH164:AI164)=0,\"\",SUM(AH164:AI164))","v":""},{"$f":"IF(ISERROR($K164*AE164*$C$9),\"\",$K164*AE164*$C$9)","v":""},{"$f":"IF(ISERROR($K164*AF164*$C$9),\"\",$K164*AF164*$C$9)","v":""},{"$f":"IF(SUM(AK164:AL164)=0,\"\",SUM(AK164:AL164))","v":""}]
[null,"Inline",101,"C/O","WORK","Men",null,"SEATTLE ROMEO SOFT TOE","シアトル　ロメオ ソフト　トゥ","Cascade Brown/Black",20000,2,"1024261","9   D",27,"191190681664",null,null,null,null,null,null,null,null,null,null,null,null,null,null,"","","","","","","","",""]
[null,"Inline",101,"C/O","WORK","Men",null,"SEATTLE ROMEO SOFT TOE","シアトル　ロメオ ソフト　トゥ","Cascade Brown/Black",20000,2,"1024261","9.5 D",27.5,"191190681640",null,null,null,null,null,null,null,null,null,null,null,null,null,null,"","","","","","","","",""]
[null,"Inline",101,"C/O","WORK","Men",null,"SEATTLE ROMEO SOFT TOE","シアトル　ロメオ ソフト　トゥ","Cascade Brown/Black",20000,2,"1024261","10  D",28,"191190681770",null,null,null,null,null,null,null,null,null,null,null,null,null,null,"","","","","","","","",""]
[null,"Inline",101,"C/O","WORK","Men",null,"SEATTLE ROMEO SOFT TOE","シアトル　ロメオ ソフト　トゥ","Cascade Brown/Black",20000,2,"1024261","10.5D",28.5,"191190681794",null,null,null,null,null,null,null,null,null,null,null,null,null,null,"","","","","","","","",""]
[null,"Inline",101,"C/O","WORK","Men",null,"SEATTLE ROMEO SOFT TOE","シアトル　ロメオ ソフト　トゥ","Cascade Brown/Black",20000,2,"1024261","11  D",29,"191190681817",null,null,null,null,null,null,null,null,null,null,null,null,null,null,"","","","","","","","",""]
[null,"Inline",102,"C/O","WORK","Men",null,"ROSWELL MID","ロズウェル　ミッド","Almond/Black Olive",17000,2,"1026365","7   D",25,"191190947913",null,null,null,null,null,null,null,null,null,null,null,null,null,null,"","","","","","","","",""]
[null,"Inline",102,"C/O","WORK","Men",null,"ROSWELL MID","ロズウェル　ミッド","Almond/Black Olive",17000,2,"1026365","7.5 D",25.5,"191190947890",null,null,null,null,null,null,null,null,null,null,null,null,null,null,"","","","","","","","",""]
[null,"Inline",102,"C/O","WORK","Men",null,"ROSWELL MID","ロズウェル　ミッド","Almond/Black Olive",17000,2,"1026365","8   D",26,"191190947876",null,null,null,null,null,null,null,null,null,null,null,null,null,null,"","","","","","","","",""]
[null,"Inline",102,"C/O","WORK","Men",null,"ROSWELL MID","ロズウェル　ミッド","Almond/Black Olive",17000,2,"1026365","8.5 D",26.5,"191190947852",null,null,null,null,null,null,null,null,null,null,null,null,null,null,"","","","","","","","",""]
[null,"Inline",102,"C/O","WORK","Men",null,"ROSWELL MID","ロズウェル　ミッド","Almond/Black Olive",17000,2,"1026365","9   D",27,"191190947838",null,null,null,null,null,null,null,null,null,null,null,null,null,null,"","","","","","","","",""]
[null,"Inline",102,"C/O","WORK","Men",null,"ROSWELL MID","ロズウェル　ミッド","Almond/Black Olive",17000,2,"1026365","9.5 D",27.5,"191190947814",null,null,null,null,null,null,null,null,null,null,null,null,null,null,"","","","","","","","",""]
[null,"Inline",102,"C/O","WORK","Men",null,"ROSWELL MID","ロズウェル　ミッド","Almond/Black Olive",17000,2,"1026365","10  D",28,"191190947944",null,null,null,null,null,null,null,null,null,null,null,null,null,null,"","","","","","","","",""]
[null,"Inline",102,"C/O","WORK","Men",null,"ROSWELL MID","ロズウェル　ミッド","Almond/Black Olive",17000,2,"1026365","10.5D",28.5,"191190947968",null,null,null,null,null,null,null,null,null,null,null,null,null,null,"","","","","","","","",""]
[null,"Inline",102,"C/O","WORK","Men",null,"ROSWELL MID","ロズウェル　ミッド","Almond/Black Olive",17000,2,"1026365","11  D",29,"191190947982",null,null,null,null,null,null,null,null,null,null,null,null,null,null,"","","","","","","","",""]
[null,"Inline",102,"C/O","WORK","Men",null,"ROSWELL MID","ロズウェル　ミッド","Military Olive/Black Olive",17000,2,"1026364","7   D",25,"191190947630",null,null,null,null,null,null,null,null,null,null,null,null,null,null,"","","","","","","","",""]
[null,"Inline",102,"C/O","WORK","Men",null,"ROSWELL MID","ロズウェル　ミッド","Military Olive/Black Olive",17000,2,"1026364","7.5 D",25.5,"191190947616",null,null,null,null,null,null,null,null,null,null,null,null,null,null,"","","","","","","","",""]
[null,"Inline",102,"C/O","WORK","Men",null,"ROSWELL MID","ロズウェル　ミッド","Military Olive/Black Olive",17000,2,"1026364","8   D",26,"191190947593",null,null,null,null,null,null,null,null,null,null,null,null,null,null,"","","","","","","","",""]
[null,"Inline",102,"C/O","WORK","Men",null,"ROSWELL MID","ロズウェル　ミッド","Military Olive/Black Olive",17000,2,"1026364","8.5 D",26.5,"191190947579",null,null,null,null,null,null,null,null,null,null,null,null,null,null,"","","","","","","","",""]
[null,"Inline",102,"C/O","WORK","Men",null,"ROSWELL MID","ロズウェル　ミッド","Military Olive/Black Olive",17000,2,"1026364","9   D",27,"191190947555",null,null,null,null,null,null,null,null,null,null,null,null,null,null,"","","","","","","","",""]
[null,"Inline",102,"C/O","WORK","Men",null,"ROSWELL MID","ロズウェル　ミッド","Military Olive/Black Olive",17000,2,"1026364","9.5 D",27.5,"191190947531",null,null,null,null,null,null,null,null,null,null,null,null,null,null,"","","","","","","","",""]
[null,"Inline",102,"C/O","WORK","Men",null,"ROSWELL MID","ロズウェル　ミッド","Military Olive/Black Olive",17000,2,"1026364","10  D",28,"191190947661",null,null,null,null,null,null,null,null,null,null,null,null,null,null,"","","","","","","","",""]
[null,"Inline",102,"C/O","WORK","Men",null,"ROSWELL MID","ロズウェル　ミッド","Military Olive/Black Olive",17000,2,"1026364","10.5D",28.5,"191190947685",null,null,null,null,null,null,null,null,null,null,null,null,null,null,"","","","","","","","",""]
[null,"Inline",102,"C/O","WORK","Men",null,"ROSWELL MID","ロズウェル　ミッド","Military Olive/Black Olive",17000,2,"1026364","11  D",29,"191190947708",null,null,null,null,null,null,null,null,null,null,null,null,null,null,"","","","","","","","",""]
[null,"Inline",103,"NEW","WORK","Men",null,"RENO MID KBF WP","リノ　ミッド　ケービーエフ　ウォータープルーフ","Dark Olive/Black",21500,3,"1027102","7   D",25,"195208126352",null,null,null,null,null,null,null,null,null,null,null,null,null,null,"","","","","","","","",""]
[null,"Inline",103,"NEW","WORK","Men",null,"RENO MID KBF WP","リノ　ミッド　ケービーエフ　ウォータープルーフ","Dark Olive/Black",21500,3,"1027102","7.5 D",25.5,"195208126338",null,null,null,null,null,null,null,null,null,null,null,null,null,null,"","","","","","","","",""]
[null,"Inline",103,"NEW","WORK","Men",null,"RENO MID KBF WP","リノ　ミッド　ケービーエフ　ウォータープルーフ","Dark Olive/Black",21500,3,"1027102","8   D",26,"195208126314",null,null,null,null,null,null,null,null,null,null,null,null,null,null,"","","","","","","","",""]
[null,"Inline",103,"NEW","WORK","Men",null,"RENO MID KBF WP","リノ　ミッド　ケービーエフ　ウォータープルーフ","Dark Olive/Black",21500,3,"1027102","8.5 D",26.5,"195208126291",null,null,null,null,null,null,null,null,null,null,null,null,null,null,"","","","","","","","",""]
[null,"Inline",103,"NEW","WORK","Men",null,"RENO MID KBF WP","リノ　ミッド　ケービーエフ　ウォータープルーフ","Dark Olive/Black",21500,3,"1027102","9   D",27,"195208126277",null,null,null,null,null,null,null,null,null,null,null,null,null,null,"","","","","","","","",""]
[null,"Inline",103,"NEW","WORK","Men",null,"RENO MID KBF WP","リノ　ミッド　ケービーエフ　ウォータープルーフ","Dark Olive/Black",21500,3,"1027102","9.5 D",27.5,"195208126253",null,null,null,null,null,null,null,null,null,null,null,null,null,null,"","","","","","","","",""]
[null,"Inline",103,"NEW","WORK","Men",null,"RENO MID KBF WP","リノ　ミッド　ケービーエフ　ウォータープルーフ","Dark Olive/Black",21500,3,"1027102","10  D",28,"195208126383",null,null,null,null,null,null,null,null,null,null,null,null,null,null,"","","","","","","","",""]
[null,"Inline",103,"NEW","WORK","Men",null,"RENO MID KBF WP","リノ　ミッド　ケービーエフ　ウォータープルーフ","Dark Olive/Black",21500,3,"1027102","10.5D",28.5,"195208126406",null,null,null,null,null,null,null,null,null,null,null,null,null,null,"","","","","","","","",""]
[null,"Inline",103,"NEW","WORK","Men",null,"RENO MID KBF WP","リノ　ミッド　ケービーエフ　ウォータープルーフ","Dark Olive/Black",21500,3,"1027102","11  D",29,"195208126420",null,null,null,null,null,null,null,null,null,null,null,null,null,null,"","","","","","","","",""]
[null,"Inline",103,"NEW","WORK","Men",null,"RENO MID KBF WP","リノ　ミッド　ケービーエフ　ウォータープルーフ","Magnet/Black",21500,3,"1027103","7   D",25,"195208126635",null,null,null,null,null,null,null,null,null,null,null,null,null,null,"","","","","","","","",""]
[null,"Inline",103,"NEW","WORK","Men",null,"RENO MID KBF WP","リノ　ミッド　ケービーエフ　ウォータープルーフ","Magnet/Black",21500,3,"1027103","7.5 D",25.5,"195208126611",null,null,null,null,null,null,null,null,null,null,null,null,null,null,"","","","","","","","",""]
[null,"Inline",103,"NEW","WORK","Men",null,"RENO MID KBF WP","リノ　ミッド　ケービーエフ　ウォータープルーフ","Magnet/Black",21500,3,"1027103","8   D",26,"195208126598",null,null,null,null,null,null,null,null,null,null,null,null,null,null,"","","","","","","","",""]
[null,"Inline",103,"NEW","WORK","Men",null,"RENO MID KBF WP","リノ　ミッド　ケービーエフ　ウォータープルーフ","Magnet/Black",21500,3,"1027103","8.5 D",26.5,"195208126574",null,null,null,null,null,null,null,null,null,null,null,null,null,null,"","","","","","","","",""]
[null,"Inline",103,"NEW","WORK","Men",null,"RENO MID KBF WP","リノ　ミッド　ケービーエフ　ウォータープルーフ","Magnet/Black",21500,3,"1027103","9   D",27,"195208126550",null,null,null,null,null,null,null,null,null,null,null,null,null,null,"","","","","","","","",""]
[null,"Inline",103,"NEW","WORK","Men",null,"RENO MID KBF WP","リノ　ミッド　ケービーエフ　ウォータープルーフ","Magnet/Black",21500,3,"1027103","9.5 D",27.5,"195208126536",null,null,null,null,null,null,null,null,null,null,null,null,null,null,"","","","","","","","",""]
[null,"Inline",103,"NEW","WORK","Men",null,"RENO MID KBF WP","リノ　ミッド　ケービーエフ　ウォータープルーフ","Magnet/Black",21500,3,"1027103","10  D",28,"195208126666",null,null,null,null,null,null,null,null,null,null,null,null,null,null,"","","","","","","","",""]
[null,"Inline",103,"NEW","WORK","Men",null,"RENO MID KBF WP","リノ　ミッド　ケービーエフ　ウォータープルーフ","Magnet/Black",21500,3,"1027103","10.5D",28.5,"195208126680",null,null,null,null,null,null,null,null,null,null,null,null,null,null,"","","","","","","","",""]
[null,"Inline",103,"NEW","WORK","Men",null,"RENO MID KBF WP","リノ　ミッド　ケービーエフ　ウォータープルーフ","Magnet/Black",21500,3,"1027103","11  D",29,"195208126703",null,null,null,null,null,null,null,null,null,null,null,null,null,null,"","","","","","","","",""]
[null,"Inline",104,"NEW","WORK","Men",null,"RENO KBF WP","リノ　ケービーエフ　ウォータープルーフ","Brindle/Morel",20000,3,"1027106","7   D",25,"195208127434",null,null,null,null,null,null,null,null,null,null,null,null,null,null,"","","","","","","","",""]
[null,"Inline",104,"NEW","WORK","Men",null,"RENO KBF WP","リノ　ケービーエフ　ウォータープルーフ","Brindle/Morel",20000,3,"1027106","7.5 D",25.5,"195208127410",null,null,null,null,null,null,null,null,null,null,null,null,null,null,"","","","","","","","",""]
[null,"Inline",104,"NEW","WORK","Men",null,"RENO KBF WP","リノ　ケービーエフ　ウォータープルーフ","Brindle/Morel",20000,3,"1027106","8   D",26,"195208127397",null,null,null,null,null,null,null,null,null,null,null,null,null,null,"","","","","","","","",""]
[null,"Inline",104,"NEW","WORK","Men",null,"RENO KBF WP","リノ　ケービーエフ　ウォータープルーフ","Brindle/Morel",20000,3,"1027106","8.5 D",26.5,"195208127373",null,null,null,null,null,null,null,null,null,null,null,null,null,null,"","","","","","","","",""]
[null,"Inline",104,"NEW","WORK","Men",null,"RENO KBF WP","リノ　ケービーエフ　ウォータープルーフ","Brindle/Morel",20000,3,"1027106","9   D",27,"195208127359",null,null,null,null,null,null,null,null,null,null,null,null,null,null,"","","","","","","","",""]
[null,"Inline",104,"NEW","WORK","Men",null,"RENO KBF WP","リノ　ケービーエフ　ウォータープルーフ","Brindle/Morel",20000,3,"1027106","9.5 D",27.5,"195208127335",null,null,null,null,null,null,null,null,null,null,null,null,null,null,"","","","","","","","",""]
[null,"Inline",104,"NEW","WORK","Men",null,"RENO KBF WP","リノ　ケービーエフ　ウォータープルーフ","Brindle/Morel",20000,3,"1027106","10  D",28,"195208127465",null,null,null,null,null,null,null,null,null,null,null,null,null,null,"","","","","","","","",""]
[null,"Inline",104,"NEW","WORK","Men",null,"RENO KBF WP","リノ　ケービーエフ　ウォータープルーフ","Brindle/Morel",20000,3,"1027106","10.5D",28.5,"195208127489",null,null,null,null,null,null,null,null,null,null,null,null,null,null,"","","","","","","","",""]
[null,"Inline",104,"NEW","WORK","Men",null,"RENO KBF WP","リノ　ケービーエフ　ウォータープルーフ","Brindle/Morel",20000,3,"1027106","11  D",29,"195208127502",null,null,null,null,null,null,null,null,null,null,null,null,null,null,"","","","","","","","",""]
[null,"Inline",104,"NEW","WORK","Men",null,"RENO KBF WP","リノ　ケービーエフ　ウォータープルーフ","Red Clay/Black",20000,3,"1027105","7   D",25,"195208127069",null,null,null,null,null,null,null,null,null,null,null,null,null,null,"","","","","","","","",""]
[null,"Inline",104,"NEW","WORK","Men",null,"RENO KBF WP","リノ　ケービーエフ　ウォータープルーフ","Red Clay/Black",20000,3,"1027105","7.5 D",25.5,"195208127083",null,null,null,null,null,null,null,null,null,null,null,null,null,null,"","","","","","","","",""]
[null,"Inline",104,"NEW","WORK","Men",null,"RENO KBF WP","リノ　ケービーエフ　ウォータープルーフ","Red Clay/Black",20000,3,"1027105","8   D",26,"195208127106",null,null,null,null,null,null,null,null,null,null,null,null,null,null,"","","","","","","","",""]
[null,"Inline",104,"NEW","WORK","Men",null,"RENO KBF WP","リノ　ケービーエフ　ウォータープルーフ","Red Clay/Black",20000,3,"1027105","8.5 D",26.5,"195208127120",null,null,null,null,null,null,null,null,null,null,null,null,null,null,"","","","","","","","",""]
[null,"Inline",104,"NEW","WORK","Men",null,"RENO KBF WP","リノ　ケービーエフ　ウォータープルーフ","Red Clay/Black",20000,3,"1027105","9   D",27,"195208127144",null,null,null,null,null,null,null,null,null,null,null,null,null,null,"","","","","","","","",""]
[null,"Inline",104,"NEW","WORK","Men",null,"RENO KBF WP","リノ　ケービーエフ　ウォータープルーフ","Red Clay/Black",20000,3,"1027105","9.5 D",27.5,"195208127168",null,null,null,null,null,null,null,null,null,null,null,null,null,null,"","","","","","","","",""]
[null,"Inline",104,"NEW","WORK","Men",null,"RENO KBF WP","リノ　ケービーエフ　ウォータープルーフ","Red Clay/Black",20000,3,"1027105","10  D",28,"195208127182",null,null,null,null,null,null,null,null,null,null,null,null,null,null,"","","","","","","","",""]
[null,"Inline",104,"NEW","WORK","Men",null,"RENO KBF WP","リノ　ケービーエフ　ウォータープルーフ","Red Clay/Black",20000,3,"1027105","10.5D",28.5,"195208127205",null,null,null,null,null,null,null,null,null,null,null,null,null,null,"","","","","","","","",""]
[null,"Inline",104,"NEW","WORK","Men",null,"RENO KBF WP","リノ　ケービーエフ　ウォータープルーフ","Red Clay/Black",20000,3,"1027105","11  D",29,"195208127229",null,null,null,null,null,null,null,null,null,null,null,null,null,null,"","","","","","","","",""]
[null,"Inline",105,"C/O","WORK","Men",null,"KANSAS CITY MID KBF WP","カンザス　シティ　ミッド　ケービーエフ　ウォータープルーフ","Black/Gun Metal",19500,2,"1025695","7   D",25,"191190852170",null,null,null,null,null,null,null,null,null,null,null,null,null,null,"","","","","","","","",""]
[null,"Inline",105,"C/O","WORK","Men",null,"KANSAS CITY MID KBF WP","カンザス　シティ　ミッド　ケービーエフ　ウォータープルーフ","Black/Gun Metal",19500,2,"1025695","7.5 D",25.5,"191190852156",null,null,null,null,null,null,null,null,null,null,null,null,null,null,"","","","","","","","",""]
[null,"Inline",105,"C/O","WORK","Men",null,"KANSAS CITY MID KBF WP","カンザス　シティ　ミッド　ケービーエフ　ウォータープルーフ","Black/Gun Metal",19500,2,"1025695","8   D",26,"191190852132",null,null,null,null,null,null,null,null,null,null,null,null,null,null,"","","","","","","","",""]
[null,"Inline",105,"C/O","WORK","Men",null,"KANSAS CITY MID KBF WP","カンザス　シティ　ミッド　ケービーエフ　ウォータープルーフ","Black/Gun Metal",19500,2,"1025695","8.5 D",26.5,"191190852118",null,null,null,null,null,null,null,null,null,null,null,null,null,null,"","","","","","","","",""]
[null,"Inline",105,"C/O","WORK","Men",null,"KANSAS CITY MID KBF WP","カンザス　シティ　ミッド　ケービーエフ　ウォータープルーフ","Black/Gun Metal",19500,2,"1025695","9   D",27,"191190852095",null,null,null,null,null,null,null,null,null,null,null,null,null,null,{"$f":"IF(SUMIF($Q$17:$AD$17,AE$17,$Q228:$AD228)=0,\"\",SUMIF($Q$17:$AD$17,AE$17,$Q228:$AD228))","v":""},"",{"$f":"IF(SUM(AE228:AF228)=0,\"\",SUM(AE228:AF228))","v":""},{"$f":"IF(ISERROR($K228*AE228),\"\",$K228*AE228)","v":""},{"$f":"IF(ISERROR($K228*AF228),\"\",$K228*AF228)","v":""},{"$f":"IF(SUM(AH228:AI228)=0,\"\",SUM(AH228:AI228))","v":""},{"$f":"IF(ISERROR($K228*AE228*$C$9),\"\",$K228*AE228*$C$9)","v":""},{"$f":"IF(ISERROR($K228*AF228*$C$9),\"\",$K228*AF228*$C$9)","v":""},{"$f":"IF(SUM(AK228:AL228)=0,\"\",SUM(AK228:AL228))","v":""}]
[null,"Inline",105,"C/O","WORK","Men",null,"KANSAS CITY MID KBF WP","カンザス　シティ　ミッド　ケービーエフ　ウォータープルーフ","Black/Gun Metal",19500,2,"1025695","9.5 D",27.5,"191190852071",null,null,null,null,null,null,null,null,null,null,null,null,null,null,"","","","","","","","",""]
[null,"Inline",105,"C/O","WORK","Men",null,"KANSAS CITY MID KBF WP","カンザス　シティ　ミッド　ケービーエフ　ウォータープルーフ","Black/Gun Metal",19500,2,"1025695","10  D",28,"191190852200",null,null,null,null,null,null,null,null,null,null,null,null,null,null,"","","","","","","","",""]
[null,"Inline",105,"C/O","WORK","Men",null,"KANSAS CITY MID KBF WP","カンザス　シティ　ミッド　ケービーエフ　ウォータープルーフ","Black/Gun Metal",19500,2,"1025695","10.5D",28.5,"191190852224",null,null,null,null,null,null,null,null,null,null,null,null,null,null,"","","","","","","","",""]
[null,"Inline",105,"C/O","WORK","Men",null,"KANSAS CITY MID KBF WP","カンザス　シティ　ミッド　ケービーエフ　ウォータープルーフ","Black/Gun Metal",19500,2,"1025695","11  D",29,"191190852248",null,null,null,null,null,null,null,null,null,null,null,null,null,null,"","","","","","","","",""]
[null,"Inline",105,"C/O","WORK","Men",null,"KANSAS CITY MID KBF WP","カンザス　シティ　ミッド　ケービーエフ　ウォータープルーフ","Black/Gun Metal",19500,2,"1025695","11.5D",29.5,"191190852262",null,null,null,null,null,null,null,null,null,null,null,null,null,null,"","","","","","","","",""]
[null,"Inline",105,"C/O","WORK","Men",null,"KANSAS CITY MID KBF WP","カンザス　シティ　ミッド　ケービーエフ　ウォータープルーフ","Black/Gun Metal",19500,2,"1025695","12  D",30,"191190852286",null,null,null,null,null,null,null,null,null,null,null,null,null,null,"","","","","","","","",""]
[null,"Inline",106,"C/O","WORK","Men",null,"KANSAS CITY KBF","カンザス　シティ　ケービーエフ","Black/Gun Metal",16000,2,"1025577","7   D",25,"191190837290",null,null,null,null,null,null,null,null,null,null,null,null,null,null,"","","","","","","","",""]
[null,"Inline",106,"C/O","WORK","Men",null,"KANSAS CITY KBF","カンザス　シティ　ケービーエフ","Black/Gun Metal",16000,2,"1025577","7.5 D",25.5,"191190837276",null,null,null,null,null,null,null,null,null,null,null,null,null,null,"","","","","","","","",""]
[null,"Inline",106,"C/O","WORK","Men",null,"KANSAS CITY KBF","カンザス　シティ　ケービーエフ","Black/Gun Metal",16000,2,"1025577","8   D",26,"191190837252",null,null,null,null,null,null,null,null,null,null,null,null,null,null,"","","","","","","","",""]
[null,"Inline",106,"C/O","WORK","Men",null,"KANSAS CITY KBF","カンザス　シティ　ケービーエフ","Black/Gun Metal",16000,2,"1025577","8.5 D",26.5,"191190837238",null,null,null,null,null,null,null,null,null,null,null,null,null,null,"","","","","","","","",""]
[null,"Inline",106,"C/O","WORK","Men",null,"KANSAS CITY KBF","カンザス　シティ　ケービーエフ","Black/Gun Metal",16000,2,"1025577","9   D",27,"191190837214",null,null,null,null,null,null,null,null,null,null,null,null,null,null,"","","","","","","","",""]
[null,"Inline",106,"C/O","WORK","Men",null,"KANSAS CITY KBF","カンザス　シティ　ケービーエフ","Black/Gun Metal",16000,2,"1025577","9.5 D",27.5,"191190837191",null,null,null,null,null,null,null,null,null,null,null,null,null,null,"","","","","","","","",""]
[null,"Inline",106,"C/O","WORK","Men",null,"KANSAS CITY KBF","カンザス　シティ　ケービーエフ","Black/Gun Metal",16000,2,"1025577","10  D",28,"191190837320",null,null,null,null,null,null,null,null,null,null,null,null,null,null,"","","","","","","","",""]
[null,"Inline",106,"C/O","WORK","Men",null,"KANSAS CITY KBF","カンザス　シティ　ケービーエフ","Black/Gun Metal",16000,2,"1025577","10.5D",28.5,"191190837344",null,null,null,null,null,null,null,null,null,null,null,null,null,null,"","","","","","","","",""]
[null,"Inline",106,"C/O","WORK","Men",null,"KANSAS CITY KBF","カンザス　シティ　ケービーエフ","Black/Gun Metal",16000,2,"1025577","11  D",29,"191190837368",null,null,null,null,null,null,null,null,null,null,null,null,null,null,"","","","","","","","",""]
[null,"Inline",107,"C/O","WORK","Men",null,"RED HOOK MID WP","レッド　フック　ミッド　ウォータープルーフ ","Tobacco/Black",21000,2,"1024576","7   D",25,"191190716380",null,null,null,null,null,null,null,null,null,null,null,null,null,null,"","","","","","","","",""]
[null,"Inline",107,"C/O","WORK","Men",null,"RED HOOK MID WP","レッド　フック　ミッド　ウォータープルーフ ","Tobacco/Black",21000,2,"1024576","7.5 D",25.5,"191190716366",null,null,null,null,null,null,null,null,null,null,null,null,null,null,"","","","","","","","",""]
[null,"Inline",107,"C/O","WORK","Men",null,"RED HOOK MID WP","レッド　フック　ミッド　ウォータープルーフ ","Tobacco/Black",21000,2,"1024576","8   D",26,"191190716342",null,null,null,null,null,null,null,null,null,null,null,null,null,null,"","","","","","","","",""]
[null,"Inline",107,"C/O","WORK","Men",null,"RED HOOK MID WP","レッド　フック　ミッド　ウォータープルーフ ","Tobacco/Black",21000,2,"1024576","8.5 D",26.5,"191190716328",null,null,null,null,null,null,null,null,null,null,null,null,null,null,"","","","","","","","",""]
[null,"Inline",107,"C/O","WORK","Men",null,"RED HOOK MID WP","レッド　フック　ミッド　ウォータープルーフ ","Tobacco/Black",21000,2,"1024576","9   D",27,"191190716304",null,null,null,null,null,null,null,null,null,null,null,null,null,null,"","","","","","","","",""]
[null,"Inline",107,"C/O","WORK","Men",null,"RED HOOK MID WP","レッド　フック　ミッド　ウォータープルーフ ","Tobacco/Black",21000,2,"1024576","9.5 D",27.5,"191190716281",null,null,null,null,null,null,null,null,null,null,null,null,null,null,"","","","","","","","",""]
[null,"Inline",107,"C/O","WORK","Men",null,"RED HOOK MID WP","レッド　フック　ミッド　ウォータープルーフ ","Tobacco/Black",21000,2,"1024576","10  D",28,"191190716410",null,null,null,null,null,null,null,null,null,null,null,null,null,null,"","","","","","","","",""]
[null,"Inline",107,"C/O","WORK","Men",null,"RED HOOK MID WP","レッド　フック　ミッド　ウォータープルーフ ","Tobacco/Black",21000,2,"1024576","10.5D",28.5,"191190716434",null,null,null,null,null,null,null,null,null,null,null,null,null,null,"","","","","","","","",""]
[null,"Inline",107,"C/O","WORK","Men",null,"RED HOOK MID WP","レッド　フック　ミッド　ウォータープルーフ ","Tobacco/Black",21000,2,"1024576","11  D",29,"191190716458",null,null,null,null,null,null,null,null,null,null,null,null,null,null,"","","","","","","","",""]
[null,"Inline",107,"C/O","WORK","Men",null,"RED HOOK MID WP","レッド　フック　ミッド　ウォータープルーフ ","Steel Grey/Bright Cobalt",21000,2,"1024577","7   D",25,"191190716663",null,null,null,null,null,null,null,null,null,null,null,null,null,null,"","","","","","","","",""]
[null,"Inline",107,"C/O","WORK","Men",null,"RED HOOK MID WP","レッド　フック　ミッド　ウォータープルーフ ","Steel Grey/Bright Cobalt",21000,2,"1024577","7.5 D",25.5,"191190716649",null,null,null,null,null,null,null,null,null,null,null,null,null,null,"","","","","","","","",""]
[null,"Inline",107,"C/O","WORK","Men",null,"RED HOOK MID WP","レッド　フック　ミッド　ウォータープルーフ ","Steel Grey/Bright Cobalt",21000,2,"1024577","8   D",26,"191190716625",null,null,null,null,null,null,null,null,null,null,null,null,null,null,"","","","","","","","",""]
[null,"Inline",107,"C/O","WORK","Men",null,"RED HOOK MID WP","レッド　フック　ミッド　ウォータープルーフ ","Steel Grey/Bright Cobalt",21000,2,"1024577","8.5 D",26.5,"191190716601",null,null,null,null,null,null,null,null,null,null,null,null,null,null,"","","","","","","","",""]
[null,"Inline",107,"C/O","WORK","Men",null,"RED HOOK MID WP","レッド　フック　ミッド　ウォータープルーフ ","Steel Grey/Bright Cobalt",21000,2,"1024577","9   D",27,"191190716588",null,null,null,null,null,null,null,null,null,null,null,null,null,null,"","","","","","","","",""]
[null,"Inline",107,"C/O","WORK","Men",null,"RED HOOK MID WP","レッド　フック　ミッド　ウォータープルーフ ","Steel Grey/Bright Cobalt",21000,2,"1024577","9.5 D",27.5,"191190716564",null,null,null,null,null,null,null,null,null,null,null,null,null,null,"","","","","","","","",""]
[null,"Inline",107,"C/O","WORK","Men",null,"RED HOOK MID WP","レッド　フック　ミッド　ウォータープルーフ ","Steel Grey/Bright Cobalt",21000,2,"1024577","10  D",28,"191190716694",null,null,null,null,null,null,null,null,null,null,null,null,null,null,"","","","","","","","",""]
[null,"Inline",107,"C/O","WORK","Men",null,"RED HOOK MID WP","レッド　フック　ミッド　ウォータープルーフ ","Steel Grey/Bright Cobalt",21000,2,"1024577","10.5D",28.5,"191190716717",null,null,null,null,null,null,null,null,null,null,null,null,null,null,"","","","","","","","",""]
[null,"Inline",107,"C/O","WORK","Men",null,"RED HOOK MID WP","レッド　フック　ミッド　ウォータープルーフ ","Steel Grey/Bright Cobalt",21000,2,"1024577","11  D",29,"191190716731",null,null,null,null,null,null,null,null,null,null,null,null,null,null,"","","","","","","","",""]
[null,"Inline",108,"C/O","WORK","Men",null,"VISTA ENERGY","ヴィスタ　エナジー","Black/Raven",14500,2,"1024586","7   D",25,"191190719183",null,null,null,null,null,null,null,null,null,null,null,null,null,null,"","","","","","","","",""]
[null,"Inline",108,"C/O","WORK","Men",null,"VISTA ENERGY","ヴィスタ　エナジー","Black/Raven",14500,2,"1024586","7.5 D",25.5,"191190719169",null,null,null,null,null,null,null,null,null,null,null,null,null,null,"","","","","","","","",""]
[null,"Inline",108,"C/O","WORK","Men",null,"VISTA ENERGY","ヴィスタ　エナジー","Black/Raven",14500,2,"1024586","8   D",26,"191190719145",null,null,null,null,null,null,null,null,null,null,null,null,null,null,"","","","","","","","",""]
[null,"Inline",108,"C/O","WORK","Men",null,"VISTA ENERGY","ヴィスタ　エナジー","Black/Raven",14500,2,"1024586","8.5 D",26.5,"191190719121",null,null,null,null,null,null,null,null,null,null,null,null,null,null,"","","","","","","","",""]
[null,"Inline",108,"C/O","WORK","Men",null,"VISTA ENERGY","ヴィスタ　エナジー","Black/Raven",14500,2,"1024586","9   D",27,"191190719107",null,null,null,null,null,null,null,null,null,null,null,null,null,null,"","","","","","","","",""]
[null,"Inline",108,"C/O","WORK","Men",null,"VISTA ENERGY","ヴィスタ　エナジー","Black/Raven",14500,2,"1024586","9.5 D",27.5,"191190719084",null,null,null,null,null,null,null,null,null,null,null,null,null,null,"","","","","","","","",""]
[null,"Inline",108,"C/O","WORK","Men",null,"VISTA ENERGY","ヴィスタ　エナジー","Black/Raven",14500,2,"1024586","10  D",28,"191190719213",null,null,null,null,null,null,null,null,null,null,null,null,null,null,"","","","","","","","",""]
[null,"Inline",108,"C/O","WORK","Men",null,"VISTA ENERGY","ヴィスタ　エナジー","Black/Raven",14500,2,"1024586","10.5D",28.5,"191190719237",null,null,null,null,null,null,null,null,null,null,null,null,null,null,"","","","","","","","",""]
[null,"Inline",108,"C/O","WORK","Men",null,"VISTA ENERGY","ヴィスタ　エナジー","Black/Raven",14500,2,"1024586","11  D",29,"191190719251",null,null,null,null,null,null,null,null,null,null,null,null,null,null,"","","","","","","","",""]
[null,"Inline",108,"C/O","WORK","Men",null,"VISTA ENERGY","ヴィスタ　エナジー","Magnet/Green Glow",14500,2,"1026886","7   D",25,"195208087752",null,null,null,null,null,null,null,null,null,null,null,null,null,null,"","","","","","","","",""]
[null,"Inline",108,"C/O","WORK","Men",null,"VISTA ENERGY","ヴィスタ　エナジー","Magnet/Green Glow",14500,2,"1026886","7.5 D",25.5,"195208087738",null,null,null,null,null,null,null,null,null,null,null,null,null,null,"","","","","","","","",""]
[null,"Inline",108,"C/O","WORK","Men",null,"VISTA ENERGY","ヴィスタ　エナジー","Magnet/Green Glow",14500,2,"1026886","8   D",26,"195208087714",null,null,null,null,null,null,null,null,null,null,null,null,null,null,"","","","","","","","",""]
[null,"Inline",108,"C/O","WORK","Men",null,"VISTA ENERGY","ヴィスタ　エナジー","Magnet/Green Glow",14500,2,"1026886","8.5 D",26.5,"195208087691",null,null,null,null,null,null,null,null,null,null,null,null,null,null,"","","","","","","","",""]
[null,"Inline",108,"C/O","WORK","Men",null,"VISTA ENERGY","ヴィスタ　エナジー","Magnet/Green Glow",14500,2,"1026886","9   D",27,"195208087677",null,null,null,null,null,null,null,null,null,null,null,null,null,null,"","","","","","","","",""]
[null,"Inline",108,"C/O","WORK","Men",null,"VISTA ENERGY","ヴィスタ　エナジー","Magnet/Green Glow",14500,2,"1026886","9.5 D",27.5,"195208087653",null,null,null,null,null,null,null,null,null,null,null,null,null,null,"","","","","","","","",""]
[null,"Inline",108,"C/O","WORK","Men",null,"VISTA ENERGY","ヴィスタ　エナジー","Magnet/Green Glow",14500,2,"1026886","10  D",28,"195208087783",null,null,null,null,null,null,null,null,null,null,null,null,null,null,"","","","","","","","",""]
[null,"Inline",108,"C/O","WORK","Men",null,"VISTA ENERGY","ヴィスタ　エナジー","Magnet/Green Glow",14500,2,"1026886","10.5D",28.5,"195208087806",null,null,null,null,null,null,null,null,null,null,null,null,null,null,"","","","","","","","",""]
[null,"Inline",108,"C/O","WORK","Men",null,"VISTA ENERGY","ヴィスタ　エナジー","Magnet/Green Glow",14500,2,"1026886","11  D",29,"195208087820",null,null,null,null,null,null,null,null,null,null,null,null,null,null,"","","","","","","","",""]
[null,"Inline",108,"C/O","WORK","Men",null,"VISTA ENERGY","ヴィスタ　エナジー","Steel Grey/Baleine Blue",14500,2,"1026887","7   D",25,"195208088032",null,null,null,null,null,null,null,null,null,null,null,null,null,null,"","","","","","","","",""]
[null,"Inline",108,"C/O","WORK","Men",null,"VISTA ENERGY","ヴィスタ　エナジー","Steel Grey/Baleine Blue",14500,2,"1026887","7.5 D",25.5,"195208088018",null,null,null,null,null,null,null,null,null,null,null,null,null,null,"","","","","","","","",""]
[null,"Inline",108,"C/O","WORK","Men",null,"VISTA ENERGY","ヴィスタ　エナジー","Steel Grey/Baleine Blue",14500,2,"1026887","8   D",26,"195208087998",null,null,null,null,null,null,null,null,null,null,null,null,null,null,"","","","","","","","",""]
[null,"Inline",108,"C/O","WORK","Men",null,"VISTA ENERGY","ヴィスタ　エナジー","Steel Grey/Baleine Blue",14500,2,"1026887","8.5 D",26.5,"195208087974",null,null,null,null,null,null,null,null,null,null,null,null,null,null,"","","","","","","","",""]
[null,"Inline",108,"C/O","WORK","Men",null,"VISTA ENERGY","ヴィスタ　エナジー","Steel Grey/Baleine Blue",14500,2,"1026887","9   D",27,"195208087950",null,null,null,null,null,null,null,null,null,null,null,null,null,null,"","","","","","","","",""]
[null,"Inline",108,"C/O","WORK","Men",null,"VISTA ENERGY","ヴィスタ　エナジー","Steel Grey/Baleine Blue",14500,2,"1026887","9.5 D",27.5,"195208087936",null,null,null,null,null,null,null,null,null,null,null,null,null,null,"","","","","","","","",""]
[null,"Inline",108,"C/O","WORK","Men",null,"VISTA ENERGY","ヴィスタ　エナジー","Steel Grey/Baleine Blue",14500,2,"1026887","10  D",28,"195208088063",null,null,null,null,null,null,null,null,null,null,null,null,null,null,"","","","","","","","",""]
[null,"Inline",108,"C/O","WORK","Men",null,"VISTA ENERGY","ヴィスタ　エナジー","Steel Grey/Baleine Blue",14500,2,"1026887","10.5D",28.5,"195208088087",null,null,null,null,null,null,null,null,null,null,null,null,null,null,"","","","","","","","",""]
[null,"Inline",108,"C/O","WORK","Men",null,"VISTA ENERGY","ヴィスタ　エナジー","Steel Grey/Baleine Blue",14500,2,"1026887","11  D",29,"195208088100",null,null,null,null,null,null,null,null,null,null,null,null,null,null,"","","","","","","","",""]
[null,"Inline",109,"C/O","WORK","Men",null,"VISTA ENERGY SHIFT","ヴィスタ　エナジー　シフト","Black/Evening Primrose",14000,2,"1026362","7   D",25,"191190947074",null,null,null,null,null,null,null,null,null,null,null,null,null,null,"","","","","","","","",""]
[null,"Inline",109,"C/O","WORK","Men",null,"VISTA ENERGY SHIFT","ヴィスタ　エナジー　シフト","Black/Evening Primrose",14000,2,"1026362","7.5 D",25.5,"191190947050",null,null,null,null,null,null,null,null,null,null,null,null,null,null,"","","","","","","","",""]
[null,"Inline",109,"C/O","WORK","Men",null,"VISTA ENERGY SHIFT","ヴィスタ　エナジー　シフト","Black/Evening Primrose",14000,2,"1026362","8   D",26,"191190947036",null,null,null,null,null,null,null,null,null,null,null,null,null,null,"","","","","","","","",""]
[null,"Inline",109,"C/O","WORK","Men",null,"VISTA ENERGY SHIFT","ヴィスタ　エナジー　シフト","Black/Evening Primrose",14000,2,"1026362","8.5 D",26.5,"191190947012",null,null,null,null,null,null,null,null,null,null,null,null,null,null,{"$f":"IF(SUMIF($Q$17:$AD$17,AE$17,$Q292:$AD292)=0,\"\",SUMIF($Q$17:$AD$17,AE$17,$Q292:$AD292))","v":""},"",{"$f":"IF(SUM(AE292:AF292)=0,\"\",SUM(AE292:AF292))","v":""},{"$f":"IF(ISERROR($K292*AE292),\"\",$K292*AE292)","v":""},{"$f":"IF(ISERROR($K292*AF292),\"\",$K292*AF292)","v":""},{"$f":"IF(SUM(AH292:AI292)=0,\"\",SUM(AH292:AI292))","v":""},{"$f":"IF(ISERROR($K292*AE292*$C$9),\"\",$K292*AE292*$C$9)","v":""},{"$f":"IF(ISERROR($K292*AF292*$C$9),\"\",$K292*AF292*$C$9)","v":""},{"$f":"IF(SUM(AK292:AL292)=0,\"\",SUM(AK292:AL292))","v":""}]
[null,"Inline",109,"C/O","WORK","Men",null,"VISTA ENERGY SHIFT","ヴィスタ　エナジー　シフト","Black/Evening Primrose",14000,2,"1026362","9   D",27,"191190946992",null,null,null,null,null,null,null,null,null,null,null,null,null,null,"","","","","","","","",""]
[null,"Inline",109,"C/O","WORK","Men",null,"VISTA ENERGY SHIFT","ヴィスタ　エナジー　シフト","Black/Evening Primrose",14000,2,"1026362","9.5 D",27.5,"191190946978",null,null,null,null,null,null,null,null,null,null,null,null,null,null,"","","","","","","","",""]
[null,"Inline",109,"C/O","WORK","Men",null,"VISTA ENERGY SHIFT","ヴィスタ　エナジー　シフト","Black/Evening Primrose",14000,2,"1026362","10  D",28,"191190947104",null,null,null,null,null,null,null,null,null,null,null,null,null,null,"","","","","","","","",""]
[null,"Inline",109,"C/O","WORK","Men",null,"VISTA ENERGY SHIFT","ヴィスタ　エナジー　シフト","Black/Evening Primrose",14000,2,"1026362","10.5D",28.5,"191190947128",null,null,null,null,null,null,null,null,null,null,null,null,null,null,"","","","","","","","",""]
[null,"Inline",109,"C/O","WORK","Men",null,"VISTA ENERGY SHIFT","ヴィスタ　エナジー　シフト","Black/Evening Primrose",14000,2,"1026362","11  D",29,"191190947142",null,null,null,null,null,null,null,null,null,null,null,null,null,null,"","","","","","","","",""]
[null,"Inline",109,"C/O","WORK","Men",null,"VISTA ENERGY SHIFT","ヴィスタ　エナジー　シフト","Vapor/Black",14000,2,"1026385","7   D",25,"191190999615",null,null,null,null,null,null,null,null,null,null,null,null,null,null,"","","","","","","","",""]
[null,"Inline",109,"C/O","WORK","Men",null,"VISTA ENERGY SHIFT","ヴィスタ　エナジー　シフト","Vapor/Black",14000,2,"1026385","7.5 D",25.5,"191190999592",null,null,null,null,null,null,null,null,null,null,null,null,null,null,"","","","","","","","",""]
[null,"Inline",109,"C/O","WORK","Men",null,"VISTA ENERGY SHIFT","ヴィスタ　エナジー　シフト","Vapor/Black",14000,2,"1026385","8   D",26,"191190999578",null,null,null,null,null,null,null,null,null,null,null,null,null,null,"","","","","","","","",""]
[null,"Inline",109,"C/O","WORK","Men",null,"VISTA ENERGY SHIFT","ヴィスタ　エナジー　シフト","Vapor/Black",14000,2,"1026385","8.5 D",26.5,"191190999554",null,null,null,null,null,null,null,null,null,null,null,null,null,null,"","","","","","","","",""]
[null,"Inline",109,"C/O","WORK","Men",null,"VISTA ENERGY SHIFT","ヴィスタ　エナジー　シフト","Vapor/Black",14000,2,"1026385","9   D",27,"191190999530",null,null,null,null,null,null,null,null,null,null,null,null,null,null,"","","","","","","","",""]
[null,"Inline",109,"C/O","WORK","Men",null,"VISTA ENERGY SHIFT","ヴィスタ　エナジー　シフト","Vapor/Black",14000,2,"1026385","9.5 D",27.5,"191190999516",null,null,null,null,null,null,null,null,null,null,null,null,null,null,"","","","","","","","",""]
[null,"Inline",109,"C/O","WORK","Men",null,"VISTA ENERGY SHIFT","ヴィスタ　エナジー　シフト","Vapor/Black",14000,2,"1026385","10  D",28,"191190999776",null,null,null,null,null,null,null,null,null,null,null,null,null,null,"","","","","","","","",""]
[null,"Inline",109,"C/O","WORK","Men",null,"VISTA ENERGY SHIFT","ヴィスタ　エナジー　シフト","Vapor/Black",14000,2,"1026385","10.5D",28.5,"191190999752",null,null,null,null,null,null,null,null,null,null,null,null,null,null,"","","","","","","","",""]
[null,"Inline",109,"C/O","WORK","Men",null,"VISTA ENERGY SHIFT","ヴィスタ　エナジー　シフト","Vapor/Black",14000,2,"1026385","11  D",29,"191190999738",null,null,null,null,null,null,null,null,null,null,null,null,null,null,"","","","","","","","",""]
[null,"Inline",110,"C/O","WORK","Women",null,"CSA FLINT II","シーエスエー　フリント　ツー","Cascade Brown/Surf Spray",18500,2,"1026376","5.5 M",22.5,"191190950890",null,null,null,null,null,null,null,null,null,null,null,null,null,null,"","","","","","","","",""]
[null,"Inline",110,"C/O","WORK","Women",null,"CSA FLINT II","シーエスエー　フリント　ツー","Cascade Brown/Surf Spray",18500,2,"1026376","6   M",23,"191190950876",null,null,null,null,null,null,null,null,null,null,null,null,null,null,"","","","","","","","",""]
[null,"Inline",110,"C/O","WORK","Women",null,"CSA FLINT II","シーエスエー　フリント　ツー","Cascade Brown/Surf Spray",18500,2,"1026376","6.5 M",23.5,"191190950852",null,null,null,null,null,null,null,null,null,null,null,null,null,null,"","","","","","","","",""]
[null,"Inline",110,"C/O","WORK","Women",null,"CSA FLINT II","シーエスエー　フリント　ツー","Cascade Brown/Surf Spray",18500,2,"1026376","7   M",24,"191190950838",null,null,null,null,null,null,null,null,null,null,null,null,null,null,"","","","","","","","",""]
[null,"Inline",110,"C/O","WORK","Women",null,"CSA FLINT II","シーエスエー　フリント　ツー","Cascade Brown/Surf Spray",18500,2,"1026376","7.5 M",24.5,"191190950814",null,null,null,null,null,null,null,null,null,null,null,null,null,null,"","","","","","","","",""]
[null,"Inline",110,"C/O","WORK","Women",null,"CSA FLINT II","シーエスエー　フリント　ツー","Cascade Brown/Surf Spray",18500,2,"1026376","8   M",25,"191190950791",null,null,null,null,null,null,null,null,null,null,null,null,null,null,"","","","","","","","",""]
[null,"Inline",110,"C/O","WORK","Women",null,"CSA FLINT II","シーエスエー　フリント　ツー","Cascade Brown/Surf Spray",18500,2,"1026376","8.5 M",25.5,"191190950777",null,null,null,null,null,null,null,null,null,null,null,null,null,null,"","","","","","","","",""]
[null,"Inline",111,"C/O","WORK","Women",null,"SAN JOSE 6\" SOFT TOE","サンノゼ　シックス　ソフト　トゥ","Gingerbread/Off White",22500,2,"1024570","5.5 M",22.5,"191190714805",null,null,null,null,null,null,null,null,null,null,null,null,null,null,"","","","","","","","",""]
[null,"Inline",111,"C/O","WORK","Women",null,"SAN JOSE 6\" SOFT TOE","サンノゼ　シックス　ソフト　トゥ","Gingerbread/Off White",22500,2,"1024570","6   M",23,"191190714782",null,null,null,null,null,null,null,null,null,null,null,null,null,null,"","","","","","","","",""]
[null,"Inline",111,"C/O","WORK","Women",null,"SAN JOSE 6\" SOFT TOE","サンノゼ　シックス　ソフト　トゥ","Gingerbread/Off White",22500,2,"1024570","6.5 M",23.5,"191190714768",null,null,null,null,null,null,null,null,null,null,null,null,null,null,"","","","","","","","",""]
[null,"Inline",111,"C/O","WORK","Women",null,"SAN JOSE 6\" SOFT TOE","サンノゼ　シックス　ソフト　トゥ","Gingerbread/Off White",22500,2,"1024570","7   M",24,"191190714744",null,null,null,null,null,null,null,null,null,null,null,null,null,null,"","","","","","","","",""]
[null,"Inline",111,"C/O","WORK","Women",null,"SAN JOSE 6\" SOFT TOE","サンノゼ　シックス　ソフト　トゥ","Gingerbread/Off White",22500,2,"1024570","7.5 M",24.5,"191190714720",null,null,null,null,null,null,null,null,null,null,null,null,null,null,"","","","","","","","",""]
[null,"Inline",111,"C/O","WORK","Women",null,"SAN JOSE 6\" SOFT TOE","サンノゼ　シックス　ソフト　トゥ","Gingerbread/Off White",22500,2,"1024570","8   M",25,"191190714706",null,null,null,null,null,null,null,null,null,null,null,null,null,null,"","","","","","","","",""]
[null,"Inline",111,"C/O","WORK","Women",null,"SAN JOSE 6\" SOFT TOE","サンノゼ　シックス　ソフト　トゥ","Gingerbread/Off White",22500,2,"1024570","8.5 M",25.5,"191190714683",null,null,null,null,null,null,null,null,null,null,null,null,null,null,"","","","","","","","",""]
[null,"Inline",112,"C/O","WORK","Women",null,"VISTA ENERGY","ヴィスタ　エナジー","Black/Raven",14500,2,"1024597","5.5 M",22.5,"191190722176",null,null,null,null,null,null,null,null,null,null,null,null,null,null,"","","","","","","","",""]
[null,"Inline",112,"C/O","WORK","Women",null,"VISTA ENERGY","ヴィスタ　エナジー","Black/Raven",14500,2,"1024597","6   M",23,"191190722190",null,null,null,null,null,null,null,null,null,null,null,null,null,null,"","","","","","","","",""]
[null,"Inline",112,"C/O","WORK","Women",null,"VISTA ENERGY","ヴィスタ　エナジー","Black/Raven",14500,2,"1024597","6.5 M",23.5,"191190722213",null,null,null,null,null,null,null,null,null,null,null,null,null,null,"","","","","","","","",""]
[null,"Inline",112,"C/O","WORK","Women",null,"VISTA ENERGY","ヴィスタ　エナジー","Black/Raven",14500,2,"1024597","7   M",24,"191190722107",null,null,null,null,null,null,null,null,null,null,null,null,null,null,"","","","","","","","",""]
[null,"Inline",112,"C/O","WORK","Women",null,"VISTA ENERGY","ヴィスタ　エナジー","Black/Raven",14500,2,"1024597","7.5 M",24.5,"191190722084",null,null,null,null,null,null,null,null,null,null,null,null,null,null,"","","","","","","","",""]
[null,"Inline",112,"C/O","WORK","Women",null,"VISTA ENERGY","ヴィスタ　エナジー","Black/Raven",14500,2,"1024597","8   M",25,"191190722060",null,null,null,null,null,null,null,null,null,null,null,null,null,null,"","","","","","","","",""]
[null,"Inline",112,"C/O","WORK","Women",null,"VISTA ENERGY","ヴィスタ　エナジー","Black/Raven",14500,2,"1024597","8.5 M",25.5,"191190722046",null,null,null,null,null,null,null,null,null,null,null,null,null,null,"","","","","","","","",""]
[null,"Inline",112,"C/O","WORK","Women",null,"VISTA ENERGY","ヴィスタ　エナジー","Magnet/Rhubarb",14500,2,"1026662","5.5 M",22.5,"195208048289",null,null,null,null,null,null,null,null,null,null,null,null,null,null,"","","","","","","","",""]
[null,"Inline",112,"C/O","WORK","Women",null,"VISTA ENERGY","ヴィスタ　エナジー","Magnet/Rhubarb",14500,2,"1026662","6   M",23,"195208048302",null,null,null,null,null,null,null,null,null,null,null,null,null,null,"","","","","","","","",""]
[null,"Inline",112,"C/O","WORK","Women",null,"VISTA ENERGY","ヴィスタ　エナジー","Magnet/Rhubarb",14500,2,"1026662","6.5 M",23.5,"195208048326",null,null,null,null,null,null,null,null,null,null,null,null,null,null,"","","","","","","","",""]
[null,"Inline",112,"C/O","WORK","Women",null,"VISTA ENERGY","ヴィスタ　エナジー","Magnet/Rhubarb",14500,2,"1026662","7   M",24,"195208048210",null,null,null,null,null,null,null,null,null,null,null,null,null,null,"","","","","","","","",""]
[null,"Inline",112,"C/O","WORK","Women",null,"VISTA ENERGY","ヴィスタ　エナジー","Magnet/Rhubarb",14500,2,"1026662","7.5 M",24.5,"195208048197",null,null,null,null,null,null,null,null,null,null,null,null,null,null,"","","","","","","","",""]
[null,"Inline",112,"C/O","WORK","Women",null,"VISTA ENERGY","ヴィスタ　エナジー","Magnet/Rhubarb",14500,2,"1026662","8   M",25,"195208048173",null,null,null,null,null,null,null,null,null,null,null,null,null,null,"","","","","","","","",""]
[null,"Inline",112,"C/O","WORK","Women",null,"VISTA ENERGY","ヴィスタ　エナジー","Magnet/Rhubarb",14500,2,"1026662","8.5 M",25.5,"195208048159",null,null,null,null,null,null,null,null,null,null,null,null,null,null,"","","","","","","","",""]
[null,"Inline",113,"C/O","WORK","Men",null,"PTC OXFORD","ピーティーシー　オックスフォード","Black",18000,3,"1006980","7",25,"871209619382",null,null,null,null,null,null,null,null,null,null,null,null,null,null,"","","","","","","","",""]
[null,"Inline",113,"C/O","WORK","Men",null,"PTC OXFORD","ピーティーシー　オックスフォード","Black",18000,3,"1006980","7.5",25.5,"871209619399",null,null,null,null,null,null,null,null,null,null,null,null,null,null,"","","","","","","","",""]
[null,"Inline",113,"C/O","WORK","Men",null,"PTC OXFORD","ピーティーシー　オックスフォード","Black",18000,3,"1006980","8",26,"871209619405",null,null,null,null,null,null,null,null,null,null,null,null,null,null,"","","","","","","","",""]
[null,"Inline",113,"C/O","WORK","Men",null,"PTC OXFORD","ピーティーシー　オックスフォード","Black",18000,3,"1006980","8.5",26.5,"871209619412",null,null,null,null,null,null,null,null,null,null,null,null,null,null,"","","","","","","","",""]
[null,"Inline",113,"C/O","WORK","Men",null,"PTC OXFORD","ピーティーシー　オックスフォード","Black",18000,3,"1006980","9",27,"871209619429",null,null,null,null,null,null,null,null,null,null,null,null,null,null,"","","","","","","","",""]
[null,"Inline",113,"C/O","WORK","Men",null,"PTC OXFORD","ピーティーシー　オックスフォード","Black",18000,3,"1006980","9.5",27.5,"871209619436",null,null,null,null,null,null,null,null,null,null,null,null,null,null,"","","","","","","","",""]
[null,"Inline",113,"C/O","WORK","Men",null,"PTC OXFORD","ピーティーシー　オックスフォード","Black",18000,3,"1006980","10",28,"871209619443",null,null,null,null,null,null,null,null,null,null,null,null,null,null,"","","","","","","","",""]
[null,"Inline",113,"C/O","WORK","Men",null,"PTC OXFORD","ピーティーシー　オックスフォード","Black",18000,3,"1006980","10.5",28.5,"871209619450",null,null,null,null,null,null,null,null,null,null,null,null,null,null,"","","","","","","","",""]
[null,"Inline",113,"C/O","WORK","Men",null,"PTC OXFORD","ピーティーシー　オックスフォード","Black",18000,3,"1006980","11",29,"871209619467",null,null,null,null,null,null,null,null,null,null,null,null,null,null,"","","","","","","","",""]
[null,"Inline",113,"C/O","WORK","Men",null,"PTC SLIP-ON II","ピーティーシー　スリップオン　ツー","Black",18000,3,"1006983","7",25,"871209619511",null,null,null,null,null,null,null,null,null,null,null,null,null,null,"","","","","","","","",""]
[null,"Inline",113,"C/O","WORK","Men",null,"PTC SLIP-ON II","ピーティーシー　スリップオン　ツー","Black",18000,3,"1006983","7.5",25.5,"871209619528",null,null,null,null,null,null,null,null,null,null,null,null,null,null,"","","","","","","","",""]
[null,"Inline",113,"C/O","WORK","Men",null,"PTC SLIP-ON II","ピーティーシー　スリップオン　ツー","Black",18000,3,"1006983","8",26,"871209619535",null,null,null,null,null,null,null,null,null,null,null,null,null,null,"","","","","","","","",""]
[null,"Inline",113,"C/O","WORK","Men",null,"PTC SLIP-ON II","ピーティーシー　スリップオン　ツー","Black",18000,3,"1006983","8.5",26.5,"871209619542",null,null,null,null,null,null,null,null,null,null,null,null,null,null,"","","","","","","","",""]
[null,"Inline",113,"C/O","WORK","Men",null,"PTC SLIP-ON II","ピーティーシー　スリップオン　ツー","Black",18000,3,"1006983","9",27,"871209619559",null,null,null,null,null,null,null,null,null,null,null,null,null,null,"","","","","","","","",""]
[null,"Inline",113,"C/O","WORK","Men",null,"PTC SLIP-ON II","ピーティーシー　スリップオン　ツー","Black",18000,3,"1006983","9.5",27.5,"871209619566",null,null,null,null,null,null,null,null,null,null,null,null,null,null,"","","","","","","","",""]
[null,"Inline",113,"C/O","WORK","Men",null,"PTC SLIP-ON II","ピーティーシー　スリップオン　ツー","Black",18000,3,"1006983","10",28,"871209619573",null,null,null,null,null,null,null,null,null,null,null,null,null,null,"","","","","","","","",""]
[null,"Inline",113,"C/O","WORK","Men",null,"PTC SLIP-ON II","ピーティーシー　スリップオン　ツー","Black",18000,3,"1006983","10.5",28.5,"871209619580",null,null,null,null,null,null,null,null,null,null,null,null,null,null,"","","","","","","","",""]
[null,"Inline",113,"C/O","WORK","Men",null,"PTC SLIP-ON II","ピーティーシー　スリップオン　ツー","Black",18000,3,"1006983","11",29,"871209619597",null,null,null,null,null,null,null,null,null,null,null,null,null,null,"","","","","","","","",""]
[null,"Inline",114,"C/O","WORK","Women",null,"PTC OXFORD","ピーティーシー　オックスフォード","Black",18000,3,"1006999","5.5",22.5,"871209630851",null,null,null,null,null,null,null,null,null,null,null,null,null,null,"","","","","","","","",""]
[null,"Inline",114,"C/O","WORK","Women",null,"PTC OXFORD","ピーティーシー　オックスフォード","Black",18000,3,"1006999","6",23,"871209630868",null,null,null,null,null,null,null,null,null,null,null,null,null,null,"","","","","","","","",""]
[null,"Inline",114,"C/O","WORK","Women",null,"PTC OXFORD","ピーティーシー　オックスフォード","Black",18000,3,"1006999","6.5",23.5,"871209630875",null,null,null,null,null,null,null,null,null,null,null,null,null,null,"","","","","","","","",""]
[null,"Inline",114,"C/O","WORK","Women",null,"PTC OXFORD","ピーティーシー　オックスフォード","Black",18000,3,"1006999","7",24,"871209630882",null,null,null,null,null,null,null,null,null,null,null,null,null,null,{"$f":"IF(SUMIF($Q$17:$AD$17,AE$17,$Q356:$AD356)=0,\"\",SUMIF($Q$17:$AD$17,AE$17,$Q356:$AD356))","v":""},"",{"$f":"IF(SUM(AE356:AF356)=0,\"\",SUM(AE356:AF356))","v":""},{"$f":"IF(ISERROR($K356*AE356),\"\",$K356*AE356)","v":""},{"$f":"IF(ISERROR($K356*AF356),\"\",$K356*AF356)","v":""},{"$f":"IF(SUM(AH356:AI356)=0,\"\",SUM(AH356:AI356))","v":""},{"$f":"IF(ISERROR($K356*AE356*$C$9),\"\",$K356*AE356*$C$9)","v":""},{"$f":"IF(ISERROR($K356*AF356*$C$9),\"\",$K356*AF356*$C$9)","v":""},{"$f":"IF(SUM(AK356:AL356)=0,\"\",SUM(AK356:AL356))","v":""}]
[null,"Inline",114,"C/O","WORK","Women",null,"PTC OXFORD","ピーティーシー　オックスフォード","Black",18000,3,"1006999","7.5",24.5,"871209630899",null,null,null,null,null,null,null,null,null,null,null,null,null,null,"","","","","","","","",""]
[null,"Inline",114,"C/O","WORK","Women",null,"PTC OXFORD","ピーティーシー　オックスフォード","Black",18000,3,"1006999","8",25,"871209630905",null,null,null,null,null,null,null,null,null,null,null,null,null,null,"","","","","","","","",""]
[null,"Inline",114,"C/O","WORK","Women",null,"PTC OXFORD","ピーティーシー　オックスフォード","Black",18000,3,"1006999","8.5",25.5,"871209630912",null,null,null,null,null,null,null,null,null,null,null,null,null,null,"","","","","","","","",""]

{"sheet":"Sheet1","index":1,"n_rows":23,"n_cols":1,"rows_kept":23,"cut":false,"hidden":true,"merged":[]}
["稲葉 岳士"]
["川手 琢矢"]
["栗原 隆馬"]
["高馬 勝典"]
["太田 優"]
["小池 誉哲"]
["鈴木 賢人"]
["古賀 雄介"]
["池野 恵梨香"]
["岸間 俊篤"]
["山崎 晋一"]
["齊藤 陸"]
["藤原 麻子"]
["林 竜也"]
["KEEN Online"]
["Retail"]
["Outlet"]
["マーケティング"]
["プロダクト"]
["岡崎 彰良（オールインオール）"]
["坂口 信司（アローリーフ）"]
["真壁 毅（Desca）"]
["泉田 和明（ケイズ）"]